{"text_format":"1","workbook":"xlsx","n_sheets":9,"sheets":["Copyright","Cover","Instruction","All Result","Sheet1","FW metal nonplant","FW metal nonplant_WS","FW metal plant","FW metal plant_WS"],"not_rendered":{"charts":0,"images":0,"macros":1,"external_links":0,"defined_names":3,"comments":3,"pivot_tables":0},"unopened":[],"bounds":{"document_bytes":16777216,"sheet_cells":100000,"rows_first":2000,"rows_last":500,"rows_between":2000,"halvings":0,"cell_chars":16384,"cell_head_chars":4096},"cells_cut":0,"cells_raw":0,"read":"whole","date_system":"1900"}

{"sheet":"Copyright","index":0,"n_rows":0,"n_cols":0,"rows_kept":0,"cut":false,"hidden":false,"merged":[]}

{"sheet":"Cover","index":1,"n_rows":20,"n_cols":7,"rows_kept":20,"cut":false,"hidden":false,"merged":[[18,6,18,8],[14,6,14,8],[13,6,13,8],[4,4,4,10],[9,6,9,8],[12,6,12,8],[5,5,6,9]]}
[]
[]
[]
[]
[null,null,null,null,"Ecotoxicity Data Quality Assessment Method V2"]
[null,null,null,null,null,"To be used to assess the quality of data used for the Australian and New Zealand Guidelines for Fresh and Marine Water Quality (including sediment) and the Australian National Environment Protection (Assessment of Site Contamination) Measure"]
[]
[]
[]
[null,null,null,null,null,null,"Developed by "]
[]
[]
[null,null,null,null,null,null,"Zoe Zhang"]
[null,null,null,null,null,null,"   Dr. Michael Warne"]
[null,null,null,null,null,null,"Alison Vieritz "]
[]
[]
[]
[null,null,null,null,null,null,"Water Quality & Investigations "]
[null,null,null,null,null,"                 Department of Science,Information Technology and Innovation"]

{"sheet":"Instruction","index":2,"n_rows":21,"n_cols":10,"rows_kept":21,"cut":false,"hidden":false,"merged":[[27,6,27,16],[14,6,14,7],[5,4,5,7]]}
[]
[]
[null,"Click here to see \"All Result\" -->","All Result"]
[]
[]
[null,null,null,null,"Freshwater "]
[]
[null,"Tabs contain questionaries -->           ","Freshwater/metal/nonplant",null,"Freshwater/non-metal/non-plant ",null,null,"Freshwater/metal/plant",null,"Freshwater/non-metal/plant"]
[]
[]
[]
[null,"Tabs contain score of paper and short answers to questions -->","Freshwater/metal/nonplant Worksheet",null,"Freshwater/non-metal/non-plant Worksheet",null,null,"Freshwater/metal/plant Worksheet",null,"Freshwater/non-metal/plant/ Worksheet"]
[]
[]
[null,null,"Marine ",null,null,null,"Terrestrial",null,null,"Sediment "]
[]
[null,"Tab contain questionaries -->","Marine or estuarine/non-plant",null,"Marine or estuarine/Plant",null,null,"Terrestrial Data QA",null,"Sediment Data QA"]
[]
[]
[]
[null,"Tab Contains all scores of paper --> ","Marine or estuarine/non-Plant Worksheet",null,"Marine or estuarine/Plant_Worksheet",null,null,"Terrestrial Quality",null,"Sediment Quality"]

{"sheet":"All Result","index":3,"n_rows":48,"n_cols":21,"rows_kept":48,"cut":false,"hidden":false,"merged":[]}
["Chemical:","Copper"]
["Medium:","Freshwater"]
[]
["Category","Paper and data unique identier","Total score","Quality score","Comment ","Species name","Life stage","Exposure duration","Measure of toxicity","Toxicity endpoint","Toxicity value","Taxonomic group","Phylum","Class","Medium","Temperature","Acute or Chronic","pH",{"$f":"'FW metal plant'!J9","v":"Salinity/Conductivity"},{"$f":"'FW metal plant'!C4","v":"Citation"},{"$f":"'FW metal plant'!G2","v":"Citation No."}]
["Freshwater/metal/non- plant","169274-1",65,0.65,"","Ambystoma opacum","Egg to larvae","10 d","NOEC","Mortality",108.8,"Amphibia","Chordata","Amphibia","USEPA standard synthetic water","18-27","Chronic",7.3,"N.A.","Soteropoulos, D.L.; Lance, S.L.; Flynn, R.W.; Scott, D.E. (2014). Effects of copper exposure on hatching success and early larval survival in marbled salamanders, Ambystoma opacum. Environmental Toxicology and Chemistry 33(7): 1631-1637.","169274"]
["Freshwater/metal/non- plant","167561-1",80,0.8,"","Daphnia longspina","Neonate","21-d","NOEC","Population",42.3,"Crustacea","Arthropoda","Cladocera","Synthetic water",20,"Chronic",7.6,"N.A.","Agra, A.R.; Soares, A.M.V.M.; Barata, C. (2011). Life-history consequences of adaptation to pollution. Daphnia longispina clones historically exposed to copper. Ecotoxicology 20(3): 552-562.","167561"]
["Freshwater/metal/non- plant","167561-1",80,0.8,"","Daphnia longspina","Neonate","21-d","NOEC","Population",5.5,"Crustacea","Arthropoda","Cladocera","Synthetic water",20,"Chronic",7.6,"N.A.","Agra, A.R.; Soares, A.M.V.M.; Barata, C. (2011). Life-history consequences of adaptation to pollution. Daphnia longispina clones historically exposed to copper. Ecotoxicology 20(3): 552-562.","167561"]
["Freshwater/metal/non- plant","115600-1",83,0.83,"","Cirrhinus mrigala","Juvenile","60 d","NOEC","Growth",100,"Fish","Chordata","Actinopterygii","Dechlorinated tap water",20,"Chronic",7.3,"N.A.","Mohanty, M.; Adhikari, S.; Mohanty, P.; Sarangi, N. (2009). Role of waterborne copper on survival, growth and feed intake of Indian major carp, Cirrhinus mrigala Hamilton. Bulletin of Environmental Contamination and Toxicology 82(5): 559-563.","115600"]
["Freshwater/metal/non- plant","100037-1",93,0.93,"","Cottus bairdi","Juvenile","21-d","NOEC","Growth",2.9,"Fish","Chordata","Actinopterygii","well water",12,"Chronic",8.1999999999999993,"N.A.","Besser, J.M.; Mebane, C.A.; Mount, D.R.; Ivey, C.D.; Kunz, J.L.; Greer, I.E.; May, T.W.; Ingersoll, C.G. (2007). Sensitivity of mottled sculpins (Cottus bairdi) and rainbow trout (Oncorhynchus mykiss) to acute and chronic toxicity of cadmium, copper, and zinc. Environmental Toxicology and Chemistry 26(8): 1657-1665.","100037"]
["Freshwater/metal/non- plant","100037-2",93,0.93,"","Cottus bairdi","Juvenile","21-d","NOEC","Mortality",2.9,"Fish","Chordata","Actinopterygii","well water",12,"Chronic",8.1999999999999993,"N.A.","Besser, J.M.; Mebane, C.A.; Mount, D.R.; Ivey, C.D.; Kunz, J.L.; Greer, I.E.; May, T.W.; Ingersoll, C.G. (2007). Sensitivity of mottled sculpins (Cottus bairdi) and rainbow trout (Oncorhynchus mykiss) to acute and chronic toxicity of cadmium, copper, and zinc. Environmental Toxicology and Chemistry 26(8): 1657-1665.","100037"]
["Freshwater/metal/non- plant","100037-3",93,0.93,"","Cottus bairdi","Juvenile","28-d","NOEC","Mortality",25,"Fish","Chordata","Actinopterygii","well water",12,"Chronic",8.1999999999999993,"N.A.","Besser, J.M.; Mebane, C.A.; Mount, D.R.; Ivey, C.D.; Kunz, J.L.; Greer, I.E.; May, T.W.; Ingersoll, C.G. (2007). Sensitivity of mottled sculpins (Cottus bairdi) and rainbow trout (Oncorhynchus mykiss) to acute and chronic toxicity of cadmium, copper, and zinc. Environmental Toxicology and Chemistry 26(8): 1657-1665.","100037"]
["Freshwater/metal/non- plant","100037-4",93,0.93,"","Cottus bairdi","Juvenile","28-d","NOEC","Growth",25,"Fish","Chordata","Actinopterygii","well water",12,"Chronic",8.1999999999999993,"N.A.","Besser, J.M.; Mebane, C.A.; Mount, D.R.; Ivey, C.D.; Kunz, J.L.; Greer, I.E.; May, T.W.; Ingersoll, C.G. (2007). Sensitivity of mottled sculpins (Cottus bairdi) and rainbow trout (Oncorhynchus mykiss) to acute and chronic toxicity of cadmium, copper, and zinc. Environmental Toxicology and Chemistry 26(8): 1657-1665.","100037"]
["Freshwater/metal/non- plant","91332-1",73,0.73,"","Etheostoma fonticola","larvae","30-d","IC-10","Biomass",12,"Fish","Chordata","Actinopterygii","Synthetic water",23,"Chronic",8.3000000000000007,"N.A.","Besser, J.M.; Wang, N.; Dwyer, F.J.; Mayer, F.L., Jr.; Ingersoll, C.G. (2005). Assessing contaminant sensitivity of endangered and threatened aquatic species: part II. Chronic toxicity of copper and pentachlorophenol to two endangered species and two surrogate species. Arch Environ Contam Toxicol 48(2): 155-165.","91332"]
["Freshwater/metal/non- plant","91332-2",73,0.73,"","Etheostoma fonticola","larvae","30-d","IC-10","Biomass",12,"Fish","Chordata","Actinopterygii","Synthetic water",23,"Chronic",8.3000000000000007,"N.A.","Besser, J.M.; Wang, N.; Dwyer, F.J.; Mayer, F.L., Jr.; Ingersoll, C.G. (2005). Assessing contaminant sensitivity of endangered and threatened aquatic species: part II. Chronic toxicity of copper and pentachlorophenol to two endangered species and two surrogate species. Arch Environ Contam Toxicol 48(2): 155-165.","91332"]
["Freshwater/metal/non- plant","91332-2",73,0.73,"","Etheostoma fonticola","larvae","30-d","IC-10","Mortality",7.1,"Fish","Chordata","Actinopterygii","Synthetic water",23,"Chronic",8.3000000000000007,"N.A.","Besser, J.M.; Wang, N.; Dwyer, F.J.; Mayer, F.L., Jr.; Ingersoll, C.G. (2005). Assessing contaminant sensitivity of endangered and threatened aquatic species: part II. Chronic toxicity of copper and pentachlorophenol to two endangered species and two surrogate species. Arch Environ Contam Toxicol 48(2): 155-165.","91332"]
["Freshwater/metal/non- plant","91332-4",73,0.73,"","Etheostoma fonticola","larvae","30-d","IC-10","Mortality","<9.3","Fish","Chordata","Actinopterygii","Synthetic water",23,"Chronic",8.3000000000000007,"N.A.","Besser, J.M.; Wang, N.; Dwyer, F.J.; Mayer, F.L., Jr.; Ingersoll, C.G. (2005). Assessing contaminant sensitivity of endangered and threatened aquatic species: part II. Chronic toxicity of copper and pentachlorophenol to two endangered species and two surrogate species. Arch Environ Contam Toxicol 48(2): 155-165.","91332"]
["Freshwater/metal/non- plant","91332-5",73,0.73,"","Etheostoma fonticola","larvae","30-d","IC-10","Biomass","<9.3","Fish","Chordata","Actinopterygii","Synthetic water",23,"Chronic",8.3000000000000007,"N.A.","Besser, J.M.; Wang, N.; Dwyer, F.J.; Mayer, F.L., Jr.; Ingersoll, C.G. (2005). Assessing contaminant sensitivity of endangered and threatened aquatic species: part II. Chronic toxicity of copper and pentachlorophenol to two endangered species and two surrogate species. Arch Environ Contam Toxicol 48(2): 155-165.","91332"]
["Freshwater/metal/non- plant","91332-6",73,0.73,"","Etheostoma fonticola","larvae","30-d","IC-10","Biomass",7.1,"Fish","Chordata","Actinopterygii","Synthetic water",23,"Chronic",8.3000000000000007,"N.A.","Besser, J.M.; Wang, N.; Dwyer, F.J.; Mayer, F.L., Jr.; Ingersoll, C.G. (2005). Assessing contaminant sensitivity of endangered and threatened aquatic species: part II. Chronic toxicity of copper and pentachlorophenol to two endangered species and two surrogate species. Arch Environ Contam Toxicol 48(2): 155-165.","91332"]
["Freshwater/metal/non- plant","151380-1",90,0.9,"","Fluminicola sp.","Mixed","28-d","NOEC","Mortality",6.6,"Mollusc","Mollusca","Gastropoda","Synthetic water",20,"Chronic",8.4,"N.A.","Besser, J.M.; Hardesty, D.L.; Greer, I.E.; Ingersoll, C.G. (2009). Sensitivity of freshwater snails to aquatic contaminants: Survival and growth of endangered snail species and surrogates in 28-day exposures to copper, ammonia and pentachlorophenol. Administrative Report CERC- 8335072010(NA): 51 p.","151380"]
["Freshwater/metal/non- plant","115302-1",80,0.8,"","Pomacea paludosa","Juvenile","60-d","NOEC","Growth",8.8000000000000007,"Mollusc","Mollusca","Gastropoda","Synthetic water",28,"Chronic",7.9,"N.A.","Rogevich, E.C.; Hoang, T.C.; Rand, G.M. (2009). Effects of sublethal chronic copper exposure on the growth and reproductive success of the Florida apple snail (Pomacea paludosa). Archives of Environmental Contamination and Toxicology 56(3): 450-458.","115302"]
["Freshwater/metal/non- plant","117718-1",88,0.88,"","Prosopium williamsoni","Egg to larvae","90d","NOEC","Growth",3.9,"Fish","Chordata","Actinopterygii","Dechlorinated tap water",10,"Chronic",6.8,"N.A.","Brinkman, S.; Vieira, N. (2008). Water Pollution Studies. Colorado Division of Wildlife Federal Aid Project F-243-R15. s. Fort Collins, Colorado.","117718"]
["Freshwater/metal/plant","86269-1",80,0.82474226804123707,"","Zizania palustris","Seedling","14-d","NOEC","Growth",37,"Macrophyte","Angiosperm","Monocot","Natural water",16,"Chronic",7.1,"N.A.","Nimmo, D.W.R.; Preul, M.A.; Castle, C.J.; Self, J.R.; Pillsbury, R.W.; Bergey, E.A. (2003). Effects of excess copper on growth of wild rice (Zizania palustris) seedlings tested in reconstituted and natural waters. Environmental Management 32(4): 466-475.","86269"]
["Freshwater/metal/plant","86269-2",80,0.82474226804123707,"","Zizania palustris","Seedling","14-d","NOEC","Growth",201,"Macrophyte","Angiosperm","Monocot","Natural water",16,"Chronic",6.8,"N.A.","Nimmo, D.W.R.; Preul, M.A.; Castle, C.J.; Self, J.R.; Pillsbury, R.W.; Bergey, E.A. (2003). Effects of excess copper on growth of wild rice (Zizania palustris) seedlings tested in reconstituted and natural waters. Environmental Management 32(4): 466-475.","86269"]
["Freshwater/metal/plant","86269-3",80,0.82474226804123707,"","Zizania palustris","Seedling","14-d","NOEC","Growth",54,"Macrophyte","Angiosperm","Monocot","Synthetic water",16,"Chronic",7.3,"N.A.","Nimmo, D.W.R.; Preul, M.A.; Castle, C.J.; Self, J.R.; Pillsbury, R.W.; Bergey, E.A. (2003). Effects of excess copper on growth of wild rice (Zizania palustris) seedlings tested in reconstituted and natural waters. Environmental Management 32(4): 466-475.","86269"]
["Freshwater/metal/non- plant","ANZG234-1",83,0.83,"","Hyridella australis","larvae","72 hour","NEC","Mortality",0.78,"Mollusc","Mollusca","Bivalvia","reconstituted water",22,"Acute ",7,"N.A.","Markich SJ. Sensitivity of the glochidia (larvae) of freshwater mussels (Bivalvia: Unionida: Hyriidae) to cadmium, cobalt, copper, lead, nickel and zinc: Differences between metals, species and exposure time. Sci Total Environ. 2017 Dec 1;601-602:1427-1436. doi: 10.1016/j.scitotenv.2017.06.010. Epub 2017 Jun 8. PMID: 28605861.","ANZG234"]
["Freshwater/metal/non- plant","ANZG234-2",83,0.83,"","Hyridella depressa","larvae","72 hour","NEC","Mortality",0.94,"Mollusc","Mollusca","Bivalvia","reconstituted water",22,"Acute ",7,"N.A.","Markich SJ. Sensitivity of the glochidia (larvae) of freshwater mussels (Bivalvia: Unionida: Hyriidae) to cadmium, cobalt, copper, lead, nickel and zinc: Differences between metals, species and exposure time. Sci Total Environ. 2017 Dec 1;601-602:1427-1436. doi: 10.1016/j.scitotenv.2017.06.010. Epub 2017 Jun 8. PMID: 28605861.","ANZG234"]
["Freshwater/metal/non- plant","ANZG234-3",83,0.83,"","Velesunio ambiguus","larvae","72 hour","NEC","Mortality",1.3,"Mollusc","Mollusca","Bivalvia","reconstituted water",22,"Acute ",7,"N.A.","Markich SJ. Sensitivity of the glochidia (larvae) of freshwater mussels (Bivalvia: Unionida: Hyriidae) to cadmium, cobalt, copper, lead, nickel and zinc: Differences between metals, species and exposure time. Sci Total Environ. 2017 Dec 1;601-602:1427-1436. doi: 10.1016/j.scitotenv.2017.06.010. Epub 2017 Jun 8. PMID: 28605861.","ANZG234"]
["Freshwater/metal/non- plant","ANZG234-4",83,0.83,"","Alathyria profuga","larvae","72 hour","NEC","Mortality",1.2,"Mollusc","Mollusca","Bivalvia","reconstituted water",22,"Acute ",7,"N.A.","Markich SJ. Sensitivity of the glochidia (larvae) of freshwater mussels (Bivalvia: Unionida: Hyriidae) to cadmium, cobalt, copper, lead, nickel and zinc: Differences between metals, species and exposure time. Sci Total Environ. 2017 Dec 1;601-602:1427-1436. doi: 10.1016/j.scitotenv.2017.06.010. Epub 2017 Jun 8. PMID: 28605861.","ANZG234"]
["Freshwater/metal/non- plant","ANZG234-5",83,0.83,"","Cucumerunio novaehollandiae","larvae","72 hour","NEC","Mortality",0.74,"Mollusc","Mollusca","Bivalvia","reconstituted water",22,"Acute ",7,"N.A.","Markich SJ. Sensitivity of the glochidia (larvae) of freshwater mussels (Bivalvia: Unionida: Hyriidae) to cadmium, cobalt, copper, lead, nickel and zinc: Differences between metals, species and exposure time. Sci Total Environ. 2017 Dec 1;601-602:1427-1436. doi: 10.1016/j.scitotenv.2017.06.010. Epub 2017 Jun 8. PMID: 28605861.","ANZG234"]
["Freshwater/metal/non- plant","ANZG234-6",83,0.83,"","Hyridella drapeta","larvae","72 hour","NEC","Mortality",0.98,"Mollusc","Mollusca","Bivalvia","reconstituted water",22,"Acute ",7,"N.A.","Markich SJ. Sensitivity of the glochidia (larvae) of freshwater mussels (Bivalvia: Unionida: Hyriidae) to cadmium, cobalt, copper, lead, nickel and zinc: Differences between metals, species and exposure time. Sci Total Environ. 2017 Dec 1;601-602:1427-1436. doi: 10.1016/j.scitotenv.2017.06.010. Epub 2017 Jun 8. PMID: 28605861.","ANZG234"]
["Freshwater/metal/non- plant","169411-1",75,0.75,"","Pelteobagrus fulvidraco","Juvenile","42 day","NOEC","Mortality",198,"Fish","Chordata","Actinopterygii","Dechlorinated tap water",22,"Chronic",7.6,"N.A.","Chen QL, Luo Z, Pan YX, Zheng JL, Zhu QL, Sun LD, Zhuo MQ, Hu W. Differential induction of enzymes and genes involved in lipid metabolism in liver and visceral adipose tissue of juvenile yellow catfish Pelteobagrus fulvidraco exposed to copper. Aquat Toxicol. 2013 Jul 15;136-137:72-8. doi: 10.1016/j.aquatox.2013.04.003. Epub 2013 Apr 17. PMID: 23660017.","169411"]
["Freshwater/metal/non- plant","169411-2",70,0.7,"","Pelteobagrus fulvidraco","Juvenile","42 day","LOEC","Growth",198,"Fish","Chordata","Actinopterygii","Dechlorinated tap water",22,"Chronic",7.6,"N.A.","Chen QL, Luo Z, Pan YX, Zheng JL, Zhu QL, Sun LD, Zhuo MQ, Hu W. Differential induction of enzymes and genes involved in lipid metabolism in liver and visceral adipose tissue of juvenile yellow catfish Pelteobagrus fulvidraco exposed to copper. Aquat Toxicol. 2013 Jul 15;136-137:72-8. doi: 10.1016/j.aquatox.2013.04.003. Epub 2013 Apr 17. PMID: 23660017.","169411"]
["Freshwater/metal/non- plant","169411-3",70,0.7,"","Pelteobagrus fulvidraco","Juvenile","42 day","NOEC","Growth",71,"Fish","Chordata","Actinopterygii","Dechlorinated tap water",22,"Chronic",7.6,"N.A.","Chen QL, Luo Z, Pan YX, Zheng JL, Zhu QL, Sun LD, Zhuo MQ, Hu W. Differential induction of enzymes and genes involved in lipid metabolism in liver and visceral adipose tissue of juvenile yellow catfish Pelteobagrus fulvidraco exposed to copper. Aquat Toxicol. 2013 Jul 15;136-137:72-8. doi: 10.1016/j.aquatox.2013.04.003. Epub 2013 Apr 17. PMID: 23660017.","169411"]
["Freshwater/metal/non- plant","169411-4",70,0.7,"","Pelteobagrus fulvidraco","Juvenile","42 day","LOEC","Condition",198,"Fish","Chordata","Actinopterygii","Dechlorinated tap water",22,"Chronic",7.6,"N.A.","Chen QL, Luo Z, Pan YX, Zheng JL, Zhu QL, Sun LD, Zhuo MQ, Hu W. Differential induction of enzymes and genes involved in lipid metabolism in liver and visceral adipose tissue of juvenile yellow catfish Pelteobagrus fulvidraco exposed to copper. Aquat Toxicol. 2013 Jul 15;136-137:72-8. doi: 10.1016/j.aquatox.2013.04.003. Epub 2013 Apr 17. PMID: 23660017.","169411"]
["Freshwater/metal/non- plant","169411-5",70,0.7,"","Pelteobagrus fulvidraco","Juvenile","42 day","NOEC","Condition",71,"Fish","Chordata","Actinopterygii","Dechlorinated tap water",22,"Chronic",7.6,"N.A.","Chen QL, Luo Z, Pan YX, Zheng JL, Zhu QL, Sun LD, Zhuo MQ, Hu W. Differential induction of enzymes and genes involved in lipid metabolism in liver and visceral adipose tissue of juvenile yellow catfish Pelteobagrus fulvidraco exposed to copper. Aquat Toxicol. 2013 Jul 15;136-137:72-8. doi: 10.1016/j.aquatox.2013.04.003. Epub 2013 Apr 17. PMID: 23660017.","169411"]
["Freshwater/metal/non- plant","ANZG3333-1",75,0.75,"","Penicillium sp","hyphal","96 h","IC-10","Growth",9340,"Fungi","Ascomycota","Eurotiomycetes","Dechlorinated tap water",20,"Chronic",7.3,"N.A.","Lategan MJ, Hose GC. Development of a groundwater fungal strain as a tool for toxicity assessment. Environ Toxicol Chem. 2014 Dec;33(12):2826-34. doi: 10.1002/etc.2748. Epub 2014 Oct 27. PMID: 25220621","ANZG3333"]
["Freshwater/metal/non- plant","ANZG3333-2",75,0.75,"","Penicillium sp","hyphal","21-d","IC-10","Growth",180,"Fungi","Ascomycota","Eurotiomycetes","Dechlorinated tap water",20,"Chronic",7.3,"N.A.","Lategan MJ, Hose GC. Development of a groundwater fungal strain as a tool for toxicity assessment. Environ Toxicol Chem. 2014 Dec;33(12):2826-34. doi: 10.1002/etc.2748. Epub 2014 Oct 27. PMID: 25220621","ANZG3333"]
["Freshwater/metal/non- plant","165445-1",81,0.81,"","Echyridella menziesii","larvae","2-d","EC20","Mortality",1.2,"Mollusc","Mollusca","Bivalvia","Dechlorinated tap water",20.5,"Acute ",7.8,"N.A.","Clearwater SJ, Thompson KJ, Hickey CW. Acute toxicity of copper, zinc, and ammonia to larvae (Glochidia) of a native freshwater mussel Echyridella menziesii in New Zealand. Arch Environ Contam Toxicol. 2014 Feb;66(2):213-26. doi: 10.1007/s00244-013-9972-7. Epub 2013 Nov 30. PMID: 24292771","165445"]
["Freshwater/metal/non- plant","165445-2",81,0.81,"","Echyridella menziesii","larvae","2-d","EC20","Mortality",2.7,"Mollusc","Mollusca","Bivalvia","Dechlorinated tap water",20.5,"Acute ",7.8,"N.A.","Clearwater SJ, Thompson KJ, Hickey CW. Acute toxicity of copper, zinc, and ammonia to larvae (Glochidia) of a native freshwater mussel Echyridella menziesii in New Zealand. Arch Environ Contam Toxicol. 2014 Feb;66(2):213-26. doi: 10.1007/s00244-013-9972-7. Epub 2013 Nov 30. PMID: 24292771","165445"]
["Freshwater/metal/non- plant","165445-3",81,0.81,"","Echyridella menziesii","larvae","2-d","EC20","Mortality",1.8,"Mollusc","Mollusca","Bivalvia","Dechlorinated tap water",20.5,"Acute ",7.8,"N.A.","Clearwater SJ, Thompson KJ, Hickey CW. Acute toxicity of copper, zinc, and ammonia to larvae (Glochidia) of a native freshwater mussel Echyridella menziesii in New Zealand. Arch Environ Contam Toxicol. 2014 Feb;66(2):213-26. doi: 10.1007/s00244-013-9972-7. Epub 2013 Nov 30. PMID: 24292771","165445"]
["Freshwater/metal/non- plant","ANZG3334-1",82,0.82,"","Amerianna cumingi","Adult","4-d","EC10","Reproduction",5.7,"Mollusc","Mollusca","Gastropoda","Freshwater",30,"Acute ",6.7,"N.A.","Melanie A Trenfield*, Ceiwen J Pease, Samantha L Walker, Tom Mooney, Linda Tybell, Chris Humphrey, Rick A van Dam and Andrew J Harford (2020). Standardised chronic toxicity test protocols\nand culturing methods for a suite of\ntropical freshwater spec ies. Australasian Bulletin of Ecotoxicology and Environmental Chemistry Vol6. 82p","ANZG3334"]
["Freshwater/metal/non- plant","ANZG3334-2",90,0.9,"","Chlorella sp","Exponential growth phase","3-d","EC10","Growth",1.6,"Microalga","Chlorophyta","Trebouxiophyceae","Synthetic water",29,"Chronic",6.3,"N.A.","Melanie A Trenfield*, Ceiwen J Pease, Samantha L Walker, Tom Mooney, Linda Tybell, Chris Humphrey, Rick A van Dam and Andrew J Harford (2020). Standardised chronic toxicity test protocols\nand culturing methods for a suite of\ntropical freshwater spec ies. Australasian Bulletin of Ecotoxicology and Environmental Chemistry Vol6. 82p","ANZG3334"]
["Freshwater/metal/plant","ANZG3334-3",87,0.89690721649484539,"","Lemna aequinoctialis","3 frond stage","4-d","EC10","Growth",6.8,"Macrophyte","Spermatophyta","Monocotyledonae","Natural water",29,"Acute ",6.8,"N.A.","Melanie A Trenfield*, Ceiwen J Pease, Samantha L Walker, Tom Mooney, Linda Tybell, Chris Humphrey, Rick A van Dam and Andrew J Harford (2020). Standardised chronic toxicity test protocols\nand culturing methods for a suite of\ntropical freshwater spec ies. Australasian Bulletin of Ecotoxicology and Environmental Chemistry Vol6. 82p","ANZG3334"]
["Freshwater/metal/non- plant","ANZG3334-4",80,0.8,"","Hydra viridissima","Budding","4-d","EC10","Population growth",2.5,"Cnidaria","Cnidaria","Hydrozoa","Freshwater",26.5,"Acute ",6.6,"N.A.","Melanie A Trenfield*, Ceiwen J Pease, Samantha L Walker, Tom Mooney, Linda Tybell, Chris Humphrey, Rick A van Dam and Andrew J Harford (2020). Standardised chronic toxicity test protocols\nand culturing methods for a suite of\ntropical freshwater spec ies. Australasian Bulletin of Ecotoxicology and Environmental Chemistry Vol6. 82p","ANZG3334"]
["Freshwater/metal/non- plant","ANZG3334-5",90,0.9,"","Moinodaphnia macleayi","Neonate","6-d","EC10","Reproduction",1,"Crustacea","Arthropoda","Branchiopoda","Freshwater",27,"Chronic",6.6,"N.A.","Melanie A Trenfield*, Ceiwen J Pease, Samantha L Walker, Tom Mooney, Linda Tybell, Chris Humphrey, Rick A van Dam and Andrew J Harford (2020). Standardised chronic toxicity test protocols\nand culturing methods for a suite of\ntropical freshwater spec ies. Australasian Bulletin of Ecotoxicology and Environmental Chemistry Vol6. 82p","ANZG3334"]
["Freshwater/metal/non- plant","ANZG3334-6",90,0.9,"","Mogurnda mogurnda","larvae","7-d","EC10","Growth",9.6,"Fish","Chordata","Actinopterygii","Freshwater",27,"Chronic",6.7,"N.A.","Melanie A Trenfield*, Ceiwen J Pease, Samantha L Walker, Tom Mooney, Linda Tybell, Chris Humphrey, Rick A van Dam and Andrew J Harford (2020). Standardised chronic toxicity test protocols\nand culturing methods for a suite of\ntropical freshwater spec ies. Australasian Bulletin of Ecotoxicology and Environmental Chemistry Vol6. 82p","ANZG3334"]
["Freshwater/metal/non- plant","ANZG3335-1",80,0.8,"","Chlorella sp","Exponential growth phase","3-d","EC10","Growth",0.89,"Microalga","Chlorophyta","Chlorophyceae","Synthetic water",27,"Chronic","N.A.","N.A.","Adams M.S., McKnight K.S., Gissi F.F, Stone S., and Stauber, J.L. (2017) Copper toxicity to marine and freshwater microalgae. CSIRO Land and Water, Technical Report EP18554. Lucas Heights, NSW, Australia. 10pp","ANZG3335"]
["Freshwater/metal/non- plant","ANZG3335-2",80,0.8,"","Monoraphidium arcuatum","Exponential growth phase","3-d","EC10","Growth",0.45,"Microalga","Chlorophyta","Chlorophyceae","Synthetic water",27,"Chronic","N.A.","N.A.","Adams M.S., McKnight K.S., Gissi F.F, Stone S., and Stauber, J.L. (2017) Copper toxicity to marine and freshwater microalgae. CSIRO Land and Water, Technical Report EP18554. Lucas Heights, NSW, Australia. 10pp","ANZG3335"]

{"sheet":"Sheet1","index":4,"n_rows":70,"n_cols":29,"rows_kept":70,"cut":false,"hidden":true,"merged":[]}
[]
[{"$f":"#REF!","v":{"$error":"#REF!"}},{"$f":"#REF!","v":{"$error":"#REF!"}},{"$f":"#REF!","v":{"$error":"#REF!"}},{"$f":"#REF!","v":{"$error":"#REF!"}},{"$f":"#REF!","v":{"$error":"#REF!"}},{"$f":"#REF!","v":{"$error":"#REF!"}},{"$f":"#REF!","v":{"$error":"#REF!"}},{"$f":"#REF!","v":{"$error":"#REF!"}},{"$f":"#REF!","v":{"$error":"#REF!"}},{"$f":"#REF!","v":{"$error":"#REF!"}},{"$f":"#REF!","v":{"$error":"#REF!"}},{"$f":"#REF!","v":{"$error":"#REF!"}},{"$f":"#REF!","v":{"$error":"#REF!"}},{"$f":"#REF!","v":{"$error":"#REF!"}},{"$f":"#REF!","v":{"$error":"#REF!"}},{"$f":"#REF!","v":{"$error":"#REF!"}},{"$f":"#REF!","v":{"$error":"#REF!"}},{"$f":"#REF!","v":{"$error":"#REF!"}},{"$f":"#REF!","v":{"$error":"#REF!"}},{"$f":"#REF!","v":{"$error":"#REF!"}},{"$f":"#REF!","v":{"$error":"#REF!"}},{"$f":"#REF!","v":{"$error":"#REF!"}},{"$f":"#REF!","v":{"$error":"#REF!"}},{"$f":"#REF!","v":{"$error":"#REF!"}},{"$f":"#REF!","v":{"$error":"#REF!"}},{"$f":"#REF!","v":{"$error":"#REF!"}}]
[{"$f":"#REF!","v":{"$error":"#REF!"}},{"$f":"#REF!","v":{"$error":"#REF!"}},{"$f":"#REF!","v":{"$error":"#REF!"}},{"$f":"#REF!","v":{"$error":"#REF!"}}]
[{"$f":"#REF!","v":{"$error":"#REF!"}},{"$f":"#REF!","v":{"$error":"#REF!"}},{"$f":"#REF!","v":{"$error":"#REF!"}},{"$f":"#REF!","v":{"$error":"#REF!"}},{"$f":"#REF!","v":{"$error":"#REF!"}},{"$f":"#REF!","v":{"$error":"#REF!"}},{"$f":"#REF!","v":{"$error":"#REF!"}},{"$f":"#REF!","v":{"$error":"#REF!"}},{"$f":"#REF!","v":{"$error":"#REF!"}},{"$f":"#REF!","v":{"$error":"#REF!"}},{"$f":"#REF!","v":{"$error":"#REF!"}},{"$f":"#REF!","v":{"$error":"#REF!"}},{"$f":"#REF!","v":{"$error":"#REF!"}},{"$f":"#REF!","v":{"$error":"#REF!"}},{"$f":"#REF!","v":{"$error":"#REF!"}},{"$f":"#REF!","v":{"$error":"#REF!"}},{"$f":"#REF!","v":{"$error":"#REF!"}},{"$f":"#REF!","v":{"$error":"#REF!"}},{"$f":"#REF!","v":{"$error":"#REF!"}},{"$f":"#REF!","v":{"$error":"#REF!"}},{"$f":"#REF!","v":{"$error":"#REF!"}},{"$f":"#REF!","v":{"$error":"#REF!"}},{"$f":"#REF!","v":{"$error":"#REF!"}},{"$f":"#REF!","v":{"$error":"#REF!"}},{"$f":"#REF!","v":{"$error":"#REF!"}},{"$f":"#REF!","v":{"$error":"#REF!"}}]
["Answers",{"$f":"IF(#REF!=0,\"\",#REF!)","v":{"$error":"#REF!"}},{"$f":"IF(#REF!=0,\"\",#REF!)","v":{"$error":"#REF!"}},{"$f":"IF(#REF!=0,\"\",#REF!)","v":{"$error":"#REF!"}},{"$f":"IF(#REF!=0,\"\",#REF!)","v":{"$error":"#REF!"}},{"$f":"IF(#REF!=0,\"\",#REF!)","v":{"$error":"#REF!"}},{"$f":"IF(#REF!=0,\"\",#REF!)","v":{"$error":"#REF!"}},{"$f":"IF(#REF!=0,\"\",#REF!)","v":{"$error":"#REF!"}},{"$f":"IF(#REF!=0,\"\",#REF!)","v":{"$error":"#REF!"}},{"$f":"IF(#REF!=0,\"\",#REF!)","v":{"$error":"#REF!"}},{"$f":"IF(#REF!=0,\"\",#REF!)","v":{"$error":"#REF!"}},{"$f":"IF(#REF!=0,\"\",#REF!)","v":{"$error":"#REF!"}},{"$f":"IF(#REF!=0,\"\",#REF!)","v":{"$error":"#REF!"}},{"$f":"IF(#REF!=0,\"\",#REF!)","v":{"$error":"#REF!"}},{"$f":"IF(#REF!=0,\"\",#REF!)","v":{"$error":"#REF!"}},{"$f":"IF(#REF!=0,\"\",#REF!)","v":{"$error":"#REF!"}},{"$f":"IF(#REF!=0,\"\",#REF!)","v":{"$error":"#REF!"}},{"$f":"IF(#REF!=0,\"\",#REF!)","v":{"$error":"#REF!"}},{"$f":"IF(#REF!=0,\"\",#REF!)","v":{"$error":"#REF!"}},{"$f":"IF(#REF!=0,\"\",#REF!)","v":{"$error":"#REF!"}},{"$f":"IF(#REF!=0,\"\",#REF!)","v":{"$error":"#REF!"}},{"$f":"IF(#REF!=0,\"\",#REF!)","v":{"$error":"#REF!"}},{"$f":"IF(#REF!=0,\"\",#REF!)","v":{"$error":"#REF!"}},{"$f":"IF(#REF!=0,\"\",#REF!)","v":{"$error":"#REF!"}}]
[{"$f":"#REF!","v":{"$error":"#REF!"}},{"$f":"#REF!","v":{"$error":"#REF!"}},{"$f":"#REF!","v":{"$error":"#REF!"}},{"$f":"#REF!","v":{"$error":"#REF!"}},{"$f":"#REF!","v":{"$error":"#REF!"}},{"$f":"#REF!","v":{"$error":"#REF!"}},{"$f":"#REF!","v":{"$error":"#REF!"}},{"$f":"#REF!","v":{"$error":"#REF!"}}]
[{"$f":"#REF!","v":{"$error":"#REF!"}},{"$f":"#REF!","v":{"$error":"#REF!"}},{"$f":"#REF!","v":{"$error":"#REF!"}},{"$f":"#REF!","v":{"$error":"#REF!"}},{"$f":"#REF!","v":{"$error":"#REF!"}},{"$f":"IF(#REF!=0,\"\",#REF!)","v":{"$error":"#REF!"}},{"$f":"IF(#REF!=0,\"\",#REF!)","v":{"$error":"#REF!"}},{"$f":"IF(#REF!=0,\"\",#REF!)","v":{"$error":"#REF!"}}]
[]
[]
[]
[{"$f":"#REF!","v":{"$error":"#REF!"}},{"$f":"#REF!","v":{"$error":"#REF!"}},{"$f":"#REF!","v":{"$error":"#REF!"}},{"$f":"#REF!","v":{"$error":"#REF!"}},{"$f":"#REF!","v":{"$error":"#REF!"}},{"$f":"#REF!","v":{"$error":"#REF!"}},{"$f":"#REF!","v":{"$error":"#REF!"}},{"$f":"#REF!","v":{"$error":"#REF!"}},{"$f":"#REF!","v":{"$error":"#REF!"}},{"$f":"#REF!","v":{"$error":"#REF!"}},{"$f":"#REF!","v":{"$error":"#REF!"}},{"$f":"#REF!","v":{"$error":"#REF!"}},{"$f":"#REF!","v":{"$error":"#REF!"}},{"$f":"#REF!","v":{"$error":"#REF!"}},{"$f":"#REF!","v":{"$error":"#REF!"}},{"$f":"#REF!","v":{"$error":"#REF!"}},{"$f":"#REF!","v":{"$error":"#REF!"}},{"$f":"#REF!","v":{"$error":"#REF!"}},{"$f":"#REF!","v":{"$error":"#REF!"}},{"$f":"#REF!","v":{"$error":"#REF!"}},{"$f":"#REF!","v":{"$error":"#REF!"}},{"$f":"#REF!","v":{"$error":"#REF!"}},{"$f":"#REF!","v":{"$error":"#REF!"}},{"$f":"#REF!","v":{"$error":"#REF!"}},{"$f":"#REF!","v":{"$error":"#REF!"}},{"$f":"#REF!","v":{"$error":"#REF!"}},{"$f":"#REF!","v":{"$error":"#REF!"}}]
[{"$f":"#REF!","v":{"$error":"#REF!"}},{"$f":"#REF!","v":{"$error":"#REF!"}},{"$f":"#REF!","v":{"$error":"#REF!"}},{"$f":"#REF!","v":{"$error":"#REF!"}}]
[{"$f":"#REF!","v":{"$error":"#REF!"}},{"$f":"#REF!","v":{"$error":"#REF!"}},{"$f":"#REF!","v":{"$error":"#REF!"}},{"$f":"#REF!","v":{"$error":"#REF!"}},{"$f":"#REF!","v":{"$error":"#REF!"}},{"$f":"#REF!","v":{"$error":"#REF!"}},{"$f":"#REF!","v":{"$error":"#REF!"}},{"$f":"#REF!","v":{"$error":"#REF!"}},{"$f":"#REF!","v":{"$error":"#REF!"}},{"$f":"#REF!","v":{"$error":"#REF!"}},{"$f":"#REF!","v":{"$error":"#REF!"}},{"$f":"#REF!","v":{"$error":"#REF!"}},{"$f":"#REF!","v":{"$error":"#REF!"}},{"$f":"#REF!","v":{"$error":"#REF!"}},{"$f":"#REF!","v":{"$error":"#REF!"}},{"$f":"#REF!","v":{"$error":"#REF!"}},{"$f":"#REF!","v":{"$error":"#REF!"}},{"$f":"#REF!","v":{"$error":"#REF!"}},{"$f":"#REF!","v":{"$error":"#REF!"}},{"$f":"#REF!","v":{"$error":"#REF!"}},{"$f":"#REF!","v":{"$error":"#REF!"}},{"$f":"#REF!","v":{"$error":"#REF!"}},{"$f":"#REF!","v":{"$error":"#REF!"}},{"$f":"#REF!","v":{"$error":"#REF!"}},{"$f":"#REF!","v":{"$error":"#REF!"}},{"$f":"#REF!","v":{"$error":"#REF!"}},{"$f":"#REF!","v":{"$error":"#REF!"}}]
[{"$f":"#REF!","v":{"$error":"#REF!"}},{"$f":"IF(#REF!=0,\"\",#REF!)","v":{"$error":"#REF!"}},{"$f":"IF(#REF!=0,\"\",#REF!)","v":{"$error":"#REF!"}},{"$f":"IF(#REF!=0,\"\",#REF!)","v":{"$error":"#REF!"}},{"$f":"IF(#REF!=0,\"\",#REF!)","v":{"$error":"#REF!"}},null,{"$f":"IF(#REF!=0,\"\",#REF!)","v":{"$error":"#REF!"}},{"$f":"IF(#REF!=0,\"\",#REF!)","v":{"$error":"#REF!"}},{"$f":"IF(#REF!=0,\"\",#REF!)","v":{"$error":"#REF!"}},{"$f":"IF(#REF!=0,\"\",#REF!)","v":{"$error":"#REF!"}},{"$f":"IF(#REF!=0,\"\",#REF!)","v":{"$error":"#REF!"}},{"$f":"IF(#REF!=0,\"\",#REF!)","v":{"$error":"#REF!"}},{"$f":"IF(#REF!=0,\"\",#REF!)","v":{"$error":"#REF!"}},{"$f":"IF(#REF!=0,\"\",#REF!)","v":{"$error":"#REF!"}},{"$f":"IF(#REF!=0,\"\",#REF!)","v":{"$error":"#REF!"}},{"$f":"IF(#REF!=0,\"\",#REF!)","v":{"$error":"#REF!"}},{"$f":"IF(#REF!=0,\"\",#REF!)","v":{"$error":"#REF!"}},{"$f":"IF(#REF!=0,\"\",#REF!)","v":{"$error":"#REF!"}},{"$f":"IF(#REF!=0,\"\",#REF!)","v":{"$error":"#REF!"}},{"$f":"IF(#REF!=0,\"\",#REF!)","v":{"$error":"#REF!"}},{"$f":"IF(#REF!=0,\"\",#REF!)","v":{"$error":"#REF!"}},{"$f":"IF(#REF!=0,\"\",#REF!)","v":{"$error":"#REF!"}},{"$f":"IF(#REF!=0,\"\",#REF!)","v":{"$error":"#REF!"}},{"$f":"IF(#REF!=0,\"\",#REF!)","v":{"$error":"#REF!"}},{"$f":"IF(#REF!=0,\"\",#REF!)","v":{"$error":"#REF!"}}]
[{"$f":"#REF!","v":{"$error":"#REF!"}},{"$f":"#REF!","v":{"$error":"#REF!"}},{"$f":"#REF!","v":{"$error":"#REF!"}},{"$f":"#REF!","v":{"$error":"#REF!"}},{"$f":"#REF!","v":{"$error":"#REF!"}},{"$f":"#REF!","v":{"$error":"#REF!"}},{"$f":"#REF!","v":{"$error":"#REF!"}},{"$f":"#REF!","v":{"$error":"#REF!"}}]
[{"$f":"#REF!","v":{"$error":"#REF!"}},{"$f":"#REF!","v":{"$error":"#REF!"}},{"$f":"#REF!","v":{"$error":"#REF!"}},{"$f":"#REF!","v":{"$error":"#REF!"}},{"$f":"#REF!","v":{"$error":"#REF!"}},{"$f":"IF(#REF!=0,\"\",#REF!)","v":{"$error":"#REF!"}},{"$f":"IF(#REF!=0,\"\",#REF!)","v":{"$error":"#REF!"}},{"$f":"IF(#REF!=0,\"\",#REF!)","v":{"$error":"#REF!"}}]
[]
[]
[]
[{"$f":"#REF!","v":{"$error":"#REF!"}},{"$f":"#REF!","v":{"$error":"#REF!"}},{"$f":"#REF!","v":{"$error":"#REF!"}},{"$f":"#REF!","v":{"$error":"#REF!"}},{"$f":"#REF!","v":{"$error":"#REF!"}},{"$f":"#REF!","v":{"$error":"#REF!"}},{"$f":"#REF!","v":{"$error":"#REF!"}},{"$f":"#REF!","v":{"$error":"#REF!"}},{"$f":"#REF!","v":{"$error":"#REF!"}},{"$f":"#REF!","v":{"$error":"#REF!"}},{"$f":"#REF!","v":{"$error":"#REF!"}},{"$f":"#REF!","v":{"$error":"#REF!"}},{"$f":"#REF!","v":{"$error":"#REF!"}},{"$f":"#REF!","v":{"$error":"#REF!"}},{"$f":"#REF!","v":{"$error":"#REF!"}},{"$f":"#REF!","v":{"$error":"#REF!"}},{"$f":"#REF!","v":{"$error":"#REF!"}},{"$f":"#REF!","v":{"$error":"#REF!"}},{"$f":"#REF!","v":{"$error":"#REF!"}},{"$f":"#REF!","v":{"$error":"#REF!"}},{"$f":"#REF!","v":{"$error":"#REF!"}},{"$f":"#REF!","v":{"$error":"#REF!"}},{"$f":"#REF!","v":{"$error":"#REF!"}},{"$f":"#REF!","v":{"$error":"#REF!"}},{"$f":"#REF!","v":{"$error":"#REF!"}},{"$f":"#REF!","v":{"$error":"#REF!"}}]
[{"$f":"#REF!","v":{"$error":"#REF!"}},{"$f":"#REF!","v":{"$error":"#REF!"}},{"$f":"#REF!","v":{"$error":"#REF!"}},{"$f":"#REF!","v":{"$error":"#REF!"}}]
[{"$f":"#REF!","v":{"$error":"#REF!"}},{"$f":"#REF!","v":{"$error":"#REF!"}},{"$f":"#REF!","v":{"$error":"#REF!"}},{"$f":"#REF!","v":{"$error":"#REF!"}},{"$f":"#REF!","v":{"$error":"#REF!"}},{"$f":"#REF!","v":{"$error":"#REF!"}},{"$f":"#REF!","v":{"$error":"#REF!"}},{"$f":"#REF!","v":{"$error":"#REF!"}},{"$f":"#REF!","v":{"$error":"#REF!"}},{"$f":"#REF!","v":{"$error":"#REF!"}},{"$f":"#REF!","v":{"$error":"#REF!"}},{"$f":"#REF!","v":{"$error":"#REF!"}},{"$f":"#REF!","v":{"$error":"#REF!"}},{"$f":"#REF!","v":{"$error":"#REF!"}},{"$f":"#REF!","v":{"$error":"#REF!"}},{"$f":"#REF!","v":{"$error":"#REF!"}},{"$f":"#REF!","v":{"$error":"#REF!"}},{"$f":"#REF!","v":{"$error":"#REF!"}},{"$f":"#REF!","v":{"$error":"#REF!"}},{"$f":"#REF!","v":{"$error":"#REF!"}},{"$f":"#REF!","v":{"$error":"#REF!"}},{"$f":"#REF!","v":{"$error":"#REF!"}},{"$f":"#REF!","v":{"$error":"#REF!"}},{"$f":"#REF!","v":{"$error":"#REF!"}},{"$f":"#REF!","v":{"$error":"#REF!"}},{"$f":"#REF!","v":{"$error":"#REF!"}}]
[{"$f":"#REF!","v":{"$error":"#REF!"}},{"$f":"IF(#REF!=0,\"\",#REF!)","v":{"$error":"#REF!"}},{"$f":"IF(#REF!=0,\"\",#REF!)","v":{"$error":"#REF!"}},{"$f":"IF(#REF!=0,\"\",#REF!)","v":{"$error":"#REF!"}},{"$f":"IF(#REF!=0,\"\",#REF!)","v":{"$error":"#REF!"}},{"$f":"IF(#REF!=0,\"\",#REF!)","v":{"$error":"#REF!"}},{"$f":"IF(#REF!=0,\"\",#REF!)","v":{"$error":"#REF!"}},{"$f":"IF(#REF!=0,\"\",#REF!)","v":{"$error":"#REF!"}},{"$f":"IF(#REF!=0,\"\",#REF!)","v":{"$error":"#REF!"}},{"$f":"IF(#REF!=0,\"\",#REF!)","v":{"$error":"#REF!"}},{"$f":"IF(#REF!=0,\"\",#REF!)","v":{"$error":"#REF!"}},{"$f":"IF(#REF!=0,\"\",#REF!)","v":{"$error":"#REF!"}},{"$f":"IF(#REF!=0,\"\",#REF!)","v":{"$error":"#REF!"}},{"$f":"IF(#REF!=0,\"\",#REF!)","v":{"$error":"#REF!"}},{"$f":"IF(#REF!=0,\"\",#REF!)","v":{"$error":"#REF!"}},{"$f":"IF(#REF!=0,\"\",#REF!)","v":{"$error":"#REF!"}},{"$f":"IF(#REF!=0,\"\",#REF!)","v":{"$error":"#REF!"}},{"$f":"IF(#REF!=0,\"\",#REF!)","v":{"$error":"#REF!"}},{"$f":"IF(#REF!=0,\"\",#REF!)","v":{"$error":"#REF!"}},{"$f":"IF(#REF!=0,\"\",#REF!)","v":{"$error":"#REF!"}},{"$f":"IF(#REF!=0,\"\",#REF!)","v":{"$error":"#REF!"}},{"$f":"IF(#REF!=0,\"\",#REF!)","v":{"$error":"#REF!"}},{"$f":"IF(#REF!=0,\"\",#REF!)","v":{"$error":"#REF!"}},{"$f":"IF(#REF!=0,\"\",#REF!)","v":{"$error":"#REF!"}}]
[{"$f":"#REF!","v":{"$error":"#REF!"}},{"$f":"#REF!","v":{"$error":"#REF!"}},{"$f":"#REF!","v":{"$error":"#REF!"}},{"$f":"#REF!","v":{"$error":"#REF!"}},{"$f":"#REF!","v":{"$error":"#REF!"}},{"$f":"#REF!","v":{"$error":"#REF!"}},{"$f":"#REF!","v":{"$error":"#REF!"}},{"$f":"#REF!","v":{"$error":"#REF!"}}]
[{"$f":"#REF!","v":{"$error":"#REF!"}},{"$f":"#REF!","v":{"$error":"#REF!"}},{"$f":"#REF!","v":{"$error":"#REF!"}},{"$f":"#REF!","v":{"$error":"#REF!"}},{"$f":"#REF!","v":{"$error":"#REF!"}},{"$f":"IF(#REF!=0,\"\",#REF!)","v":{"$error":"#REF!"}},{"$f":"IF(#REF!=0,\"\",#REF!)","v":{"$error":"#REF!"}},{"$f":"IF(#REF!=0,\"\",#REF!)","v":{"$error":"#REF!"}}]
[]
[]
[]
[{"$f":"#REF!","v":{"$error":"#REF!"}},{"$f":"#REF!","v":{"$error":"#REF!"}},{"$f":"#REF!","v":{"$error":"#REF!"}},{"$f":"#REF!","v":{"$error":"#REF!"}},{"$f":"#REF!","v":{"$error":"#REF!"}},{"$f":"#REF!","v":{"$error":"#REF!"}},{"$f":"#REF!","v":{"$error":"#REF!"}},{"$f":"#REF!","v":{"$error":"#REF!"}},{"$f":"#REF!","v":{"$error":"#REF!"}},{"$f":"#REF!","v":{"$error":"#REF!"}},{"$f":"#REF!","v":{"$error":"#REF!"}},{"$f":"#REF!","v":{"$error":"#REF!"}},{"$f":"#REF!","v":{"$error":"#REF!"}},{"$f":"#REF!","v":{"$error":"#REF!"}},{"$f":"#REF!","v":{"$error":"#REF!"}},{"$f":"#REF!","v":{"$error":"#REF!"}},{"$f":"#REF!","v":{"$error":"#REF!"}},{"$f":"#REF!","v":{"$error":"#REF!"}},{"$f":"#REF!","v":{"$error":"#REF!"}},{"$f":"#REF!","v":{"$error":"#REF!"}},{"$f":"#REF!","v":{"$error":"#REF!"}},{"$f":"#REF!","v":{"$error":"#REF!"}},{"$f":"#REF!","v":{"$error":"#REF!"}},{"$f":"#REF!","v":{"$error":"#REF!"}},{"$f":"#REF!","v":{"$error":"#REF!"}},{"$f":"#REF!","v":{"$error":"#REF!"}},{"$f":"#REF!","v":{"$error":"#REF!"}},{"$f":"#REF!","v":{"$error":"#REF!"}},{"$f":"#REF!","v":{"$error":"#REF!"}}]
[{"$f":"#REF!","v":{"$error":"#REF!"}},{"$f":"#REF!","v":{"$error":"#REF!"}},{"$f":"#REF!","v":{"$error":"#REF!"}},{"$f":"#REF!","v":{"$error":"#REF!"}}]
[{"$f":"#REF!","v":{"$error":"#REF!"}},{"$f":"#REF!","v":{"$error":"#REF!"}},{"$f":"#REF!","v":{"$error":"#REF!"}},{"$f":"#REF!","v":{"$error":"#REF!"}},{"$f":"#REF!","v":{"$error":"#REF!"}},{"$f":"#REF!","v":{"$error":"#REF!"}},{"$f":"#REF!","v":{"$error":"#REF!"}},{"$f":"#REF!","v":{"$error":"#REF!"}},{"$f":"#REF!","v":{"$error":"#REF!"}},{"$f":"#REF!","v":{"$error":"#REF!"}},{"$f":"#REF!","v":{"$error":"#REF!"}},{"$f":"#REF!","v":{"$error":"#REF!"}},{"$f":"#REF!","v":{"$error":"#REF!"}},{"$f":"#REF!","v":{"$error":"#REF!"}},{"$f":"#REF!","v":{"$error":"#REF!"}},{"$f":"#REF!","v":{"$error":"#REF!"}},{"$f":"#REF!","v":{"$error":"#REF!"}},{"$f":"#REF!","v":{"$error":"#REF!"}},{"$f":"#REF!","v":{"$error":"#REF!"}},{"$f":"#REF!","v":{"$error":"#REF!"}},{"$f":"#REF!","v":{"$error":"#REF!"}},{"$f":"#REF!","v":{"$error":"#REF!"}},{"$f":"#REF!","v":{"$error":"#REF!"}},{"$f":"#REF!","v":{"$error":"#REF!"}},{"$f":"#REF!","v":{"$error":"#REF!"}},{"$f":"#REF!","v":{"$error":"#REF!"}},{"$f":"#REF!","v":{"$error":"#REF!"}},{"$f":"#REF!","v":{"$error":"#REF!"}},{"$f":"#REF!","v":{"$error":"#REF!"}}]
[{"$f":"#REF!","v":{"$error":"#REF!"}},{"$f":"IF(#REF!=\"\",\"\",#REF!)","v":{"$error":"#REF!"}},{"$f":"IF(#REF!=\"\",\"\",#REF!)","v":{"$error":"#REF!"}},{"$f":"IF(#REF!=\"\",\"\",#REF!)","v":{"$error":"#REF!"}},{"$f":"IF(#REF!=\"\",\"\",#REF!)","v":{"$error":"#REF!"}},{"$f":"IF(#REF!=\"\",\"\",#REF!)","v":{"$error":"#REF!"}},{"$f":"IF(#REF!=\"\",\"\",#REF!)","v":{"$error":"#REF!"}},{"$f":"IF(#REF!=\"\",\"\",#REF!)","v":{"$error":"#REF!"}},{"$f":"IF(#REF!=\"\",\"\",#REF!)","v":{"$error":"#REF!"}},{"$f":"IF(#REF!=\"\",\"\",#REF!)","v":{"$error":"#REF!"}},{"$f":"IF(#REF!=\"\",\"\",#REF!)","v":{"$error":"#REF!"}},{"$f":"IF(#REF!=\"\",\"\",#REF!)","v":{"$error":"#REF!"}},{"$f":"IF(#REF!=\"\",\"\",#REF!)","v":{"$error":"#REF!"}},{"$f":"IF(#REF!=\"\",\"\",#REF!)","v":{"$error":"#REF!"}},{"$f":"IF(#REF!=\"\",\"\",#REF!)","v":{"$error":"#REF!"}},{"$f":"IF(#REF!=\"\",\"\",#REF!)","v":{"$error":"#REF!"}},{"$f":"IF(#REF!=\"\",\"\",#REF!)","v":{"$error":"#REF!"}},{"$f":"IF(#REF!=\"\",\"\",#REF!)","v":{"$error":"#REF!"}},{"$f":"IF(#REF!=\"\",\"\",#REF!)","v":{"$error":"#REF!"}},{"$f":"IF(#REF!=\"\",\"\",#REF!)","v":{"$error":"#REF!"}},{"$f":"IF(#REF!=\"\",\"\",#REF!)","v":{"$error":"#REF!"}},{"$f":"IF(#REF!=\"\",\"\",#REF!)","v":{"$error":"#REF!"}},{"$f":"IF(#REF!=\"\",\"\",#REF!)","v":{"$error":"#REF!"}},{"$f":"IF(#REF!=\"\",\"\",#REF!)","v":{"$error":"#REF!"}},{"$f":"IF(#REF!=\"\",\"\",#REF!)","v":{"$error":"#REF!"}},{"$f":"IF(#REF!=\"\",\"\",#REF!)","v":{"$error":"#REF!"}},{"$f":"IF(#REF!=\"\",\"\",#REF!)","v":{"$error":"#REF!"}}]
[{"$f":"#REF!","v":{"$error":"#REF!"}},{"$f":"#REF!","v":{"$error":"#REF!"}},{"$f":"#REF!","v":{"$error":"#REF!"}},{"$f":"#REF!","v":{"$error":"#REF!"}},{"$f":"#REF!","v":{"$error":"#REF!"}},{"$f":"#REF!","v":{"$error":"#REF!"}},{"$f":"#REF!","v":{"$error":"#REF!"}},{"$f":"#REF!","v":{"$error":"#REF!"}}]
[{"$f":"#REF!","v":{"$error":"#REF!"}},{"$f":"#REF!","v":{"$error":"#REF!"}},{"$f":"#REF!","v":{"$error":"#REF!"}},{"$f":"#REF!","v":{"$error":"#REF!"}},{"$f":"#REF!","v":{"$error":"#REF!"}},{"$f":"IF(#REF!=\"\",\"\",#REF!)","v":{"$error":"#REF!"}},{"$f":"IF(#REF!=\"\",\"\",#REF!)","v":{"$error":"#REF!"}},{"$f":"IF(#REF!=\"\",\"\",#REF!)","v":{"$error":"#REF!"}}]
[{"$f":"#REF!","v":{"$error":"#REF!"}},{"$f":"#REF!","v":{"$error":"#REF!"}},{"$f":"#REF!","v":{"$error":"#REF!"}},{"$f":"#REF!","v":{"$error":"#REF!"}},{"$f":"#REF!","v":{"$error":"#REF!"}},{"$f":"#REF!","v":{"$error":"#REF!"}},{"$f":"#REF!","v":{"$error":"#REF!"}},{"$f":"#REF!","v":{"$error":"#REF!"}},{"$f":"#REF!","v":{"$error":"#REF!"}},{"$f":"#REF!","v":{"$error":"#REF!"}},{"$f":"#REF!","v":{"$error":"#REF!"}},{"$f":"#REF!","v":{"$error":"#REF!"}},{"$f":"#REF!","v":{"$error":"#REF!"}},{"$f":"#REF!","v":{"$error":"#REF!"}},{"$f":"#REF!","v":{"$error":"#REF!"}},{"$f":"#REF!","v":{"$error":"#REF!"}},{"$f":"#REF!","v":{"$error":"#REF!"}},{"$f":"#REF!","v":{"$error":"#REF!"}},{"$f":"#REF!","v":{"$error":"#REF!"}},{"$f":"#REF!","v":{"$error":"#REF!"}},{"$f":"#REF!","v":{"$error":"#REF!"}}]
[{"$f":"#REF!","v":{"$error":"#REF!"}},{"$f":"#REF!","v":{"$error":"#REF!"}},{"$f":"#REF!","v":{"$error":"#REF!"}},{"$f":"#REF!","v":{"$error":"#REF!"}}]
[{"$f":"#REF!","v":{"$error":"#REF!"}},{"$f":"#REF!","v":{"$error":"#REF!"}},{"$f":"#REF!","v":{"$error":"#REF!"}},{"$f":"#REF!","v":{"$error":"#REF!"}},{"$f":"#REF!","v":{"$error":"#REF!"}},{"$f":"#REF!","v":{"$error":"#REF!"}},{"$f":"#REF!","v":{"$error":"#REF!"}},{"$f":"#REF!","v":{"$error":"#REF!"}},{"$f":"#REF!","v":{"$error":"#REF!"}},{"$f":"#REF!","v":{"$error":"#REF!"}},{"$f":"#REF!","v":{"$error":"#REF!"}},{"$f":"#REF!","v":{"$error":"#REF!"}},{"$f":"#REF!","v":{"$error":"#REF!"}},{"$f":"#REF!","v":{"$error":"#REF!"}},{"$f":"#REF!","v":{"$error":"#REF!"}},{"$f":"#REF!","v":{"$error":"#REF!"}},{"$f":"#REF!","v":{"$error":"#REF!"}},{"$f":"#REF!","v":{"$error":"#REF!"}},{"$f":"#REF!","v":{"$error":"#REF!"}},{"$f":"#REF!","v":{"$error":"#REF!"}},{"$f":"#REF!","v":{"$error":"#REF!"}},{"$f":"#REF!","v":{"$error":"#REF!"}}]
[{"$f":"#REF!","v":{"$error":"#REF!"}},{"$f":"IF(#REF!=\"\",\"\",#REF!)","v":{"$error":"#REF!"}},{"$f":"IF(#REF!=\"\",\"\",#REF!)","v":{"$error":"#REF!"}},{"$f":"IF(#REF!=\"\",\"\",#REF!)","v":{"$error":"#REF!"}},{"$f":"IF(#REF!=\"\",\"\",#REF!)","v":{"$error":"#REF!"}},{"$f":"IF(#REF!=\"\",\"\",#REF!)","v":{"$error":"#REF!"}},{"$f":"IF(#REF!=\"\",\"\",#REF!)","v":{"$error":"#REF!"}},{"$f":"IF(#REF!=\"\",\"\",#REF!)","v":{"$error":"#REF!"}},{"$f":"IF(#REF!=\"\",\"\",#REF!)","v":{"$error":"#REF!"}},{"$f":"IF(#REF!=\"\",\"\",#REF!)","v":{"$error":"#REF!"}},{"$f":"IF(#REF!=\"\",\"\",#REF!)","v":{"$error":"#REF!"}},{"$f":"IF(#REF!=\"\",\"\",#REF!)","v":{"$error":"#REF!"}},{"$f":"IF(#REF!=\"\",\"\",#REF!)","v":{"$error":"#REF!"}},{"$f":"IF(#REF!=\"\",\"\",#REF!)","v":{"$error":"#REF!"}},{"$f":"IF(#REF!=\"\",\"\",#REF!)","v":{"$error":"#REF!"}},{"$f":"IF(#REF!=\"\",\"\",#REF!)","v":{"$error":"#REF!"}},{"$f":"IF(#REF!=\"\",\"\",#REF!)","v":{"$error":"#REF!"}},{"$f":"IF(#REF!=\"\",\"\",#REF!)","v":{"$error":"#REF!"}},{"$f":"IF(#REF!=\"\",\"\",#REF!)","v":{"$error":"#REF!"}}]
[{"$f":"#REF!","v":{"$error":"#REF!"}},{"$f":"#REF!","v":{"$error":"#REF!"}},{"$f":"#REF!","v":{"$error":"#REF!"}},{"$f":"#REF!","v":{"$error":"#REF!"}},{"$f":"#REF!","v":{"$error":"#REF!"}},{"$f":"#REF!","v":{"$error":"#REF!"}},{"$f":"#REF!","v":{"$error":"#REF!"}},{"$f":"#REF!","v":{"$error":"#REF!"}},{"$f":"#REF!","v":{"$error":"#REF!"}},{"$f":"#REF!","v":{"$error":"#REF!"}},{"$f":"#REF!","v":{"$error":"#REF!"}},{"$f":"#REF!","v":{"$error":"#REF!"}},{"$f":"#REF!","v":{"$error":"#REF!"}},{"$f":"#REF!","v":{"$error":"#REF!"}},{"$f":"#REF!","v":{"$error":"#REF!"}},{"$f":"#REF!","v":{"$error":"#REF!"}}]
[{"$f":"#REF!","v":{"$error":"#REF!"}},{"$f":"#REF!","v":{"$error":"#REF!"}},{"$f":"#REF!","v":{"$error":"#REF!"}},{"$f":"#REF!","v":{"$error":"#REF!"}},{"$f":"#REF!","v":{"$error":"#REF!"}},{"$f":"IF(#REF!=\"\",\"\",#REF!)","v":{"$error":"#REF!"}},{"$f":"#REF!","v":{"$error":"#REF!"}},{"$f":"#REF!","v":{"$error":"#REF!"}},{"$f":"#REF!","v":{"$error":"#REF!"}},{"$f":"#REF!","v":{"$error":"#REF!"}},{"$f":"#REF!","v":{"$error":"#REF!"}},{"$f":"#REF!","v":{"$error":"#REF!"}},{"$f":"#REF!","v":{"$error":"#REF!"}},{"$f":"#REF!","v":{"$error":"#REF!"}},{"$f":"IF(#REF!=\"\",\"\",#REF!)","v":{"$error":"#REF!"}},{"$f":"IF(#REF!=\"\",\"\",#REF!)","v":{"$error":"#REF!"}}]
[{"$f":"'FW metal plant'!B11","v":"No."},{"$f":"'FW metal plant'!B13","v":1},{"$f":"'FW metal plant'!B16","v":2},{"$f":"'FW metal plant'!B19","v":3},{"$f":"'FW metal plant'!B21","v":4},{"$f":"'FW metal plant'!B23","v":5},{"$f":"'FW metal plant'!B26","v":6},{"$f":"'FW metal plant'!B29","v":7},{"$f":"'FW metal plant'!B32","v":8},{"$f":"'FW metal plant'!B35","v":9},{"$f":"'FW metal plant'!B39","v":10},{"$f":"'FW metal plant'!B42","v":11},{"$f":"'FW metal plant'!B45","v":12},{"$f":"'FW metal plant'!B48","v":13},{"$f":"'FW metal plant'!B51","v":14},{"$f":"'FW metal plant'!B53","v":15},{"$f":"'FW metal plant'!B58","v":16.100000000000001},{"$f":"'FW metal plant'!B61","v":16.2},{"$f":"'FW metal plant'!B64","v":16.3},{"$f":"'FW metal plant'!B67","v":16.399999999999999},{"$f":"'FW metal plant'!B70","v":17},{"$f":"'FW metal plant'!B73","v":18},{"$f":"'FW metal plant'!C78","v":"Total score"},{"$f":"'FW metal plant'!C80","v":"Quality Score"}]
[{"$f":"'FW metal plant'!C2","v":"Category"},{"$f":"'FW metal plant'!E2","v":"Freshwater/metal/plant"},{"$f":"'FW metal plant'!C3","v":"Paper and data unique identifier(eg. 1-1,10-150)"},{"$f":"'FW metal plant'!E3","v":"ANZG3334-3"}]
[{"$f":"'FW metal plant'!G11","v":"Scores"},{"$f":"'FW metal plant'!G12","v":10},{"$f":"'FW metal plant'!G15","v":10},{"$f":"'FW metal plant'!G18","v":5},{"$f":"'FW metal plant'!G21","v":5},{"$f":"'FW metal plant'!G23","v":5},{"$f":"'FW metal plant'!G26","v":5},{"$f":"'FW metal plant'!G29","v":5},{"$f":"'FW metal plant'!G32","v":5},{"$f":"'FW metal plant'!G35","v":5},{"$f":"'FW metal plant'!G38","v":4},{"$f":"'FW metal plant'!G41","v":4},{"$f":"'FW metal plant'!G44","v":0},{"$f":"'FW metal plant'!G47","v":0},{"$f":"'FW metal plant'!G50","v":4},{"$f":"'FW metal plant'!G53","v":4},{"$f":"'FW metal plant'!G57","v":3},{"$f":"'FW metal plant'!G60","v":3},{"$f":"'FW metal plant'!G63","v":3},{"$f":"'FW metal plant'!G66","v":3},{"$f":"'FW metal plant'!G69","v":1},{"$f":"'FW metal plant'!G72","v":3},{"$f":"'FW metal plant'!G78","v":87},{"$f":"'FW metal plant'!G80","v":0.89690721649484539},{"$f":"'FW metal plant'!H80","v":""}]
[{"$f":"'FW metal plant'!H11","v":"Answers"},{"$f":"IF('FW metal plant'!H12=\"\",\"\",'FW metal plant'!H12)","v":"4-d"},{"$f":"IF('FW metal plant'!H15=\"\",\"\",'FW metal plant'!H15)","v":"Growth rate"},{"$f":"IF('FW metal plant'!H18=\"\",\"\",'FW metal plant'!H18)","v":"EC"},{"$f":"IF('FW metal plant'!H21=\"\",\"\",'FW metal plant'!H21)","v":"Percentage of control"},{"$f":"IF('FW metal plant'!H23=\"\",\"\",'FW metal plant'!H23)","v":"control with no toxicant"},{"$f":"IF('FW metal plant'!H26=\"\",\"\",'FW metal plant'!H26)","v":"triplicate"},{"$f":"IF('FW metal plant'!H29=\"\",\"\",'FW metal plant'!H29)","v":"growth rate of the control treatment must be within the range 0.35 ± 0.1 cm2/d for the SA\nendpoint and 0.4 ± 0.1 fronds/d for the frond count endpoint (a total of 60 fronds over 96 h) for the test to be\nconsidered valid"},{"$f":"IF('FW metal plant'!H32=\"\",\"\",'FW metal plant'!H32)","v":"3 frond stage"},{"$f":"IF('FW metal plant'!H35=\"\",\"\",'FW metal plant'!H35)","v":""},{"$f":"IF('FW metal plant'!H38=\"\",\"\",'FW metal plant'!H38)","v":"Static "},{"$f":"IF('FW metal plant'!H41=\"\",\"\",'FW metal plant'!H41)","v":"start and end"},{"$f":"IF('FW metal plant'!H44=\"\",\"\",'FW metal plant'!H44)","v":"No"},{"$f":"IF('FW metal plant'!H47=\"\",\"\",'FW metal plant'!H47)","v":""},{"$f":"IF('FW metal plant'!H50=\"\",\"\",'FW metal plant'!H50)","v":"CETIS v. 1.9.0.9"},{"$f":"IF('FW metal plant'!H53=\"\",\"\",'FW metal plant'!H53)","v":"CI 95%"},{"$f":"IF('FW metal plant'!H57=\"\",\"\",'FW metal plant'!H57)","v":6.8},{"$f":"IF('FW metal plant'!H60=\"\",\"\",'FW metal plant'!H60)","v":3.1},{"$f":"IF('FW metal plant'!H63=\"\",\"\",'FW metal plant'!H63)","v":2},{"$f":"IF('FW metal plant'!H66=\"\",\"\",'FW metal plant'!H66)","v":2},{"$f":"IF('FW metal plant'!H69=\"\",\"\",'FW metal plant'!H69)","v":"incubator temp"},{"$f":"IF('FW metal plant'!H72=\"\",\"\",'FW metal plant'!H72)","v":""}]
[{"$f":"'FW metal plant'!G3","v":"Species (Scientific name)"},{"$f":"'FW metal plant'!G4","v":"Lifestage"},{"$f":"'FW metal plant'!G5","v":"Exposure duration"},{"$f":"'FW metal plant'!G6","v":"Measure of toxicity"},{"$f":"'FW metal plant'!G7","v":"Toxicity endpoint"},{"$f":"'FW metal plant'!G8","v":"Toxicity value"},{"$f":"'FW metal plant'!J2","v":"Taxonomic group"},{"$f":"'FW metal plant'!J3","v":"Phylum"},{"$f":"'FW metal plant'!J4","v":"Class"},{"$f":"'FW metal plant'!J5","v":"Media"},{"$f":"'FW metal plant'!J6","v":"Temperature "},{"$f":"'FW metal plant'!J7","v":"Acute Or Chronic "},{"$f":"'FW metal plant'!J8","v":"PH"},{"$f":"'FW metal plant'!J9","v":"Salinity/Conductivity"},{"$f":"'FW metal plant'!C4","v":"Citation"},{"$f":"'FW metal plant'!G2","v":"Citation No."}]
[{"$f":"'FW metal plant'!Q3","v":"Lemna aequinoctialis"},{"$f":"'FW metal plant'!T3","v":"3 frond stage"},{"$f":"'FW metal plant'!W3","v":"4-d"},{"$f":"'FW metal plant'!Z3","v":"EC10"},{"$f":"'FW metal plant'!AC3","v":"Growth"},{"$f":"IF('FW metal plant'!H8=\"\",\"\",'FW metal plant'!H8)","v":6.8},{"$f":"'FW metal plant'!AF3","v":"Macrophyte"},{"$f":"'FW metal plant'!AI3","v":"Spermatophyta"},{"$f":"'FW metal plant'!AL3","v":"Monocotyledonae"},{"$f":"'FW metal plant'!AO3","v":"Natural water"},{"$f":"'FW metal plant'!AR3","v":29},{"$f":"'FW metal plant'!AU3","v":"Acute "},{"$f":"'FW metal plant'!AX3","v":6.8},{"$f":"'FW metal plant'!BA3","v":"N.A."},{"$f":"IF('FW metal plant'!E4=\"\",\"\",'FW metal plant'!E4)","v":"Melanie A Trenfield*, Ceiwen J Pease, Samantha L Walker, Tom Mooney, Linda Tybell, Chris Humphrey, Rick A van Dam and Andrew J Harford (2020). Standardised chronic toxicity test protocols\nand culturing methods for a suite of\ntropical freshwater spec ies. Australasian Bulletin of Ecotoxicology and Environmental Chemistry Vol6. 82p"},{"$f":"IF('FW metal plant'!H2=\"\",\"\",'FW metal plant'!H2)","v":"ANZG3334"}]
[{"$f":"#REF!","v":{"$error":"#REF!"}},{"$f":"#REF!","v":{"$error":"#REF!"}},{"$f":"#REF!","v":{"$error":"#REF!"}},{"$f":"#REF!","v":{"$error":"#REF!"}},{"$f":"#REF!","v":{"$error":"#REF!"}},{"$f":"#REF!","v":{"$error":"#REF!"}},{"$f":"#REF!","v":{"$error":"#REF!"}},{"$f":"#REF!","v":{"$error":"#REF!"}},{"$f":"#REF!","v":{"$error":"#REF!"}},{"$f":"#REF!","v":{"$error":"#REF!"}},{"$f":"#REF!","v":{"$error":"#REF!"}},{"$f":"#REF!","v":{"$error":"#REF!"}},{"$f":"#REF!","v":{"$error":"#REF!"}},{"$f":"#REF!","v":{"$error":"#REF!"}},{"$f":"#REF!","v":{"$error":"#REF!"}},{"$f":"#REF!","v":{"$error":"#REF!"}},{"$f":"#REF!","v":{"$error":"#REF!"}},{"$f":"#REF!","v":{"$error":"#REF!"}},{"$f":"#REF!","v":{"$error":"#REF!"}},{"$f":"#REF!","v":{"$error":"#REF!"}},{"$f":"#REF!","v":{"$error":"#REF!"}},{"$f":"#REF!","v":{"$error":"#REF!"}}]
[{"$f":"#REF!","v":{"$error":"#REF!"}},{"$f":"#REF!","v":{"$error":"#REF!"}},{"$f":"#REF!","v":{"$error":"#REF!"}},{"$f":"#REF!","v":{"$error":"#REF!"}}]
[{"$f":"#REF!","v":{"$error":"#REF!"}},{"$f":"#REF!","v":{"$error":"#REF!"}},{"$f":"#REF!","v":{"$error":"#REF!"}},{"$f":"#REF!","v":{"$error":"#REF!"}},{"$f":"#REF!","v":{"$error":"#REF!"}},{"$f":"#REF!","v":{"$error":"#REF!"}},{"$f":"#REF!","v":{"$error":"#REF!"}},{"$f":"#REF!","v":{"$error":"#REF!"}},{"$f":"#REF!","v":{"$error":"#REF!"}},{"$f":"#REF!","v":{"$error":"#REF!"}},{"$f":"#REF!","v":{"$error":"#REF!"}},{"$f":"#REF!","v":{"$error":"#REF!"}},{"$f":"#REF!","v":{"$error":"#REF!"}},{"$f":"#REF!","v":{"$error":"#REF!"}},{"$f":"#REF!","v":{"$error":"#REF!"}},{"$f":"#REF!","v":{"$error":"#REF!"}},{"$f":"#REF!","v":{"$error":"#REF!"}},{"$f":"#REF!","v":{"$error":"#REF!"}},{"$f":"#REF!","v":{"$error":"#REF!"}},{"$f":"#REF!","v":{"$error":"#REF!"}},{"$f":"#REF!","v":{"$error":"#REF!"}},{"$f":"#REF!","v":{"$error":"#REF!"}},null,{"$f":"#REF!","v":{"$error":"#REF!"}}]
[{"$f":"#REF!","v":{"$error":"#REF!"}},{"$f":"IF(#REF!=\"\",\"\",#REF!)","v":{"$error":"#REF!"}},{"$f":"IF(#REF!=\"\",\"\",#REF!)","v":{"$error":"#REF!"}},{"$f":"IF(#REF!=\"\",\"\",#REF!)","v":{"$error":"#REF!"}},{"$f":"IF(#REF!=\"\",\"\",#REF!)","v":{"$error":"#REF!"}},{"$f":"IF(#REF!=\"\",\"\",#REF!)","v":{"$error":"#REF!"}},{"$f":"IF(#REF!=\"\",\"\",#REF!)","v":{"$error":"#REF!"}},{"$f":"IF(#REF!=\"\",\"\",#REF!)","v":{"$error":"#REF!"}},{"$f":"IF(#REF!=\"\",\"\",#REF!)","v":{"$error":"#REF!"}},{"$f":"IF(#REF!=\"\",\"\",#REF!)","v":{"$error":"#REF!"}},{"$f":"IF(#REF!=\"\",\"\",#REF!)","v":{"$error":"#REF!"}},{"$f":"IF(#REF!=\"\",\"\",#REF!)","v":{"$error":"#REF!"}},{"$f":"IF(#REF!=\"\",\"\",#REF!)","v":{"$error":"#REF!"}},{"$f":"IF(#REF!=\"\",\"\",#REF!)","v":{"$error":"#REF!"}},{"$f":"IF(#REF!=\"\",\"\",#REF!)","v":{"$error":"#REF!"}},{"$f":"IF(#REF!=\"\",\"\",#REF!)","v":{"$error":"#REF!"}},{"$f":"IF(#REF!=\"\",\"\",#REF!)","v":{"$error":"#REF!"}},{"$f":"IF(#REF!=\"\",\"\",#REF!)","v":{"$error":"#REF!"}},{"$f":"IF(#REF!=\"\",\"\",#REF!)","v":{"$error":"#REF!"}},{"$f":"IF(#REF!=\"\",\"\",#REF!)","v":{"$error":"#REF!"}}]
[{"$f":"#REF!","v":{"$error":"#REF!"}},{"$f":"#REF!","v":{"$error":"#REF!"}},{"$f":"#REF!","v":{"$error":"#REF!"}},{"$f":"#REF!","v":{"$error":"#REF!"}},{"$f":"#REF!","v":{"$error":"#REF!"}},{"$f":"#REF!","v":{"$error":"#REF!"}},{"$f":"#REF!","v":{"$error":"#REF!"}},{"$f":"#REF!","v":{"$error":"#REF!"}},{"$f":"#REF!","v":{"$error":"#REF!"}},{"$f":"#REF!","v":{"$error":"#REF!"}},{"$f":"#REF!","v":{"$error":"#REF!"}},{"$f":"#REF!","v":{"$error":"#REF!"}},{"$f":"#REF!","v":{"$error":"#REF!"}},{"$f":"#REF!","v":{"$error":"#REF!"}},{"$f":"#REF!","v":{"$error":"#REF!"}},{"$f":"#REF!","v":{"$error":"#REF!"}}]
[{"$f":"#REF!","v":{"$error":"#REF!"}},{"$f":"#REF!","v":{"$error":"#REF!"}},{"$f":"#REF!","v":{"$error":"#REF!"}},{"$f":"#REF!","v":{"$error":"#REF!"}},{"$f":"#REF!","v":{"$error":"#REF!"}},{"$f":"IF(#REF!=\"\",\"\",#REF!)","v":{"$error":"#REF!"}},{"$f":"#REF!","v":{"$error":"#REF!"}},{"$f":"#REF!","v":{"$error":"#REF!"}},{"$f":"#REF!","v":{"$error":"#REF!"}},{"$f":"#REF!","v":{"$error":"#REF!"}},{"$f":"#REF!","v":{"$error":"#REF!"}},{"$f":"#REF!","v":{"$error":"#REF!"}},{"$f":"#REF!","v":{"$error":"#REF!"}},{"$f":"#REF!","v":{"$error":"#REF!"}},{"$f":"IF(#REF!=\"\",\"\",#REF!)","v":{"$error":"#REF!"}},{"$f":"IF(#REF!=\"\",\"\",#REF!)","v":{"$error":"#REF!"}}]
[{"$f":"'FW metal nonplant'!B11","v":"No."},{"$f":"'FW metal nonplant'!B13","v":1},{"$f":"'FW metal nonplant'!B16","v":2},{"$f":"'FW metal nonplant'!B19","v":3},{"$f":"'FW metal nonplant'!B21","v":4},{"$f":"'FW metal nonplant'!B23","v":5},{"$f":"'FW metal nonplant'!B26","v":6},{"$f":"'FW metal nonplant'!B29","v":7},{"$f":"'FW metal nonplant'!B32","v":8},{"$f":"'FW metal nonplant'!B35","v":9},{"$f":"'FW metal nonplant'!B39","v":10},{"$f":"'FW metal nonplant'!B42","v":11},{"$f":"'FW metal nonplant'!B45","v":12},{"$f":"'FW metal nonplant'!B48","v":13},{"$f":"'FW metal nonplant'!B51","v":14},{"$f":"'FW metal nonplant'!B53","v":15},{"$f":"'FW metal nonplant'!B58","v":16.100000000000001},{"$f":"'FW metal nonplant'!B61","v":16.2},{"$f":"'FW metal nonplant'!B64","v":16.3},{"$f":"'FW metal nonplant'!B67","v":16.399999999999999},{"$f":"'FW metal nonplant'!B70","v":16.5},{"$f":"'FW metal nonplant'!B73","v":17},{"$f":"'FW metal nonplant'!B76","v":18},{"$f":"'FW metal nonplant'!C81","v":"Total score"},{"$f":"'FW metal nonplant'!C83","v":"Quality Score"}]
[{"$f":"'FW metal nonplant'!C2","v":"Category"},{"$f":"'FW metal nonplant'!E2","v":"Freshwater/metal/non- plant"},{"$f":"'FW metal nonplant'!C3","v":"Paper and data unique identifier(eg. 1-1,10-150)"},{"$f":"'FW metal nonplant'!E3","v":"ANZG3335-2"}]
[{"$f":"'FW metal nonplant'!G11","v":"Scores"},{"$f":"'FW metal nonplant'!G12","v":10},{"$f":"'FW metal nonplant'!G15","v":10},{"$f":"'FW metal nonplant'!G18","v":5},{"$f":"'FW metal nonplant'!G21","v":5},{"$f":"'FW metal nonplant'!G23","v":5},{"$f":"'FW metal nonplant'!G26","v":5},{"$f":"'FW metal nonplant'!G29","v":5},{"$f":"'FW metal nonplant'!G32","v":5},{"$f":"'FW metal nonplant'!G35","v":5},{"$f":"'FW metal nonplant'!G38","v":4},{"$f":"'FW metal nonplant'!G41","v":4},{"$f":"'FW metal nonplant'!G44","v":0},{"$f":"'FW metal nonplant'!G47","v":4},{"$f":"'FW metal nonplant'!G50","v":4},{"$f":"'FW metal nonplant'!G53","v":4},{"$f":"'FW metal nonplant'!G57","v":1},{"$f":"'FW metal nonplant'!G60","v":0},{"$f":"'FW metal nonplant'!G63","v":0},{"$f":"'FW metal nonplant'!G66","v":3},{"$f":"'FW metal nonplant'!G69","v":0},{"$f":"'FW metal nonplant'!G72","v":1},{"$f":"'FW metal nonplant'!G75","v":0},{"$f":"'FW metal nonplant'!G81","v":80},{"$f":"'FW metal nonplant'!G83","v":0.8},{"$f":"'FW metal nonplant'!H83","v":""}]
[{"$f":"'FW metal nonplant'!H11","v":"Answers"},{"$f":"IF('FW metal nonplant'!H12=\"\",\"\",'FW metal nonplant'!H12)","v":"3-d"},{"$f":"IF('FW metal nonplant'!H15=\"\",\"\",'FW metal nonplant'!H15)","v":"Algal cell density was determined\ndaily (24, 48 and 72 h) using a flow cytometer gated .."},{"$f":"IF('FW metal nonplant'!H18=\"\",\"\",'FW metal nonplant'!H18)","v":"EC10 growth rate"},{"$f":"IF('FW metal nonplant'!H21=\"\",\"\",'FW metal nonplant'!H21)","v":10},{"$f":"IF('FW metal nonplant'!H23=\"\",\"\",'FW metal nonplant'!H23)","v":"not clearly stated what the controls are, but reference methods to OECD 201"},{"$f":"IF('FW metal nonplant'!H26=\"\",\"\",'FW metal nonplant'!H26)","v":"two replicates and repeated 2 times"},{"$f":"IF('FW metal nonplant'!H29=\"\",\"\",'FW metal nonplant'!H29)","v":"Variability in the controls <20%.\nControl algal 72‐h growth rates >1 doubling/day"},{"$f":"IF('FW metal nonplant'!H32=\"\",\"\",'FW metal nonplant'!H32)","v":"Exponentially growing microalgal cells, initial\ncell density of 2–4×10^3 cells/mL"},{"$f":"IF('FW metal nonplant'!H35=\"\",\"\",'FW metal nonplant'!H35)","v":"synthetic soft water"},{"$f":"IF('FW metal nonplant'!H38=\"\",\"\",'FW metal nonplant'!H38)","v":"static"},{"$f":"IF('FW metal nonplant'!H41=\"\",\"\",'FW metal nonplant'!H41)","v":""},{"$f":"IF('FW metal nonplant'!H44=\"\",\"\",'FW metal nonplant'!H44)","v":""},{"$f":"IF('FW metal nonplant'!H47=\"\",\"\",'FW metal nonplant'!H47)","v":""},{"$f":"IF('FW metal nonplant'!H50=\"\",\"\",'FW metal nonplant'!H50)","v":""},{"$f":"IF('FW metal nonplant'!H53=\"\",\"\",'FW metal nonplant'!H53)","v":"95% CI"},{"$f":"IF('FW metal nonplant'!H57=\"\",\"\",'FW metal nonplant'!H57)","v":"measured but not stated"},{"$f":"IF('FW metal nonplant'!H60=\"\",\"\",'FW metal nonplant'!H60)","v":""},{"$f":"IF('FW metal nonplant'!H63=\"\",\"\",'FW metal nonplant'!H63)","v":""},{"$f":"IF('FW metal nonplant'!H66=\"\",\"\",'FW metal nonplant'!H66)","v":"<0.5 mg/L"},{"$f":"IF('FW metal nonplant'!H69=\"\",\"\",'FW metal nonplant'!H69)","v":""},{"$f":"IF('FW metal nonplant'!H72=\"\",\"\",'FW metal nonplant'!H72)","v":"room temperature settings stated"},{"$f":"IF('FW metal nonplant'!H75=\"\",\"\",'FW metal nonplant'!H75)","v":"not stated"}]
[{"$f":"'FW metal nonplant'!G3","v":"Species (Scientific name)"},{"$f":"'FW metal nonplant'!G4","v":"Lifestage"},{"$f":"'FW metal nonplant'!G5","v":"Exposure duration"},{"$f":"'FW metal nonplant'!G6","v":"Measure of toxicity"},{"$f":"'FW metal nonplant'!G7","v":"Toxicity endpoint"},{"$f":"'FW metal nonplant'!G8","v":"Toxicity value"},{"$f":"'FW metal nonplant'!J2","v":"Taxonomic group"},{"$f":"'FW metal nonplant'!J3","v":"Phylum"},{"$f":"'FW metal nonplant'!J4","v":"Class"},{"$f":"'FW metal nonplant'!J5","v":"Media"},{"$f":"'FW metal nonplant'!J6","v":"Temperature "},{"$f":"'FW metal nonplant'!J7","v":"Acute Or Chronic "},{"$f":"'FW metal nonplant'!J8","v":"PH"},{"$f":"'FW metal nonplant'!J9","v":"Salinity/Conductivity"},{"$f":"'FW metal nonplant'!C4","v":"Citation"},{"$f":"'FW metal nonplant'!G2","v":"Citation No."}]
[{"$f":"'FW metal nonplant'!Q3","v":"Monoraphidium arcuatum"},{"$f":"'FW metal nonplant'!T3","v":"Exponential growth phase"},{"$f":"'FW metal nonplant'!W3","v":"3-d"},{"$f":"'FW metal nonplant'!Z3","v":"EC10"},{"$f":"'FW metal nonplant'!AC3","v":"Growth"},{"$f":"IF('FW metal nonplant'!H8=\"\",\"\",'FW metal nonplant'!H8)","v":0.45},{"$f":"'FW metal nonplant'!AF3","v":"Microalga"},{"$f":"'FW metal nonplant'!AI3","v":"Chlorophyta"},{"$f":"'FW metal nonplant'!AL3","v":"Chlorophyceae"},{"$f":"'FW metal nonplant'!AO3","v":"Synthetic water"},{"$f":"'FW metal nonplant'!AR3","v":27},{"$f":"'FW metal nonplant'!AU3","v":"Chronic"},{"$f":"'FW metal nonplant'!AX3","v":"N.A."},{"$f":"'FW metal nonplant'!BA3","v":"N.A."},{"$f":"IF('FW metal nonplant'!E4=\"\",\"\",'FW metal nonplant'!E4)","v":"Adams M.S., McKnight K.S., Gissi F.F, Stone S., and Stauber, J.L. (2017) Copper toxicity to marine and freshwater microalgae. CSIRO Land and Water, Technical Report EP18554. Lucas Heights, NSW, Australia. 10pp"},{"$f":"IF('FW metal nonplant'!H2=\"\",\"\",'FW metal nonplant'!H2)","v":"ANZG3335"}]
[{"$f":"#REF!","v":{"$error":"#REF!"}},{"$f":"#REF!","v":{"$error":"#REF!"}},{"$f":"#REF!","v":{"$error":"#REF!"}},{"$f":"#REF!","v":{"$error":"#REF!"}},{"$f":"#REF!","v":{"$error":"#REF!"}},{"$f":"#REF!","v":{"$error":"#REF!"}},{"$f":"#REF!","v":{"$error":"#REF!"}},{"$f":"#REF!","v":{"$error":"#REF!"}},{"$f":"#REF!","v":{"$error":"#REF!"}},{"$f":"#REF!","v":{"$error":"#REF!"}},{"$f":"#REF!","v":{"$error":"#REF!"}},{"$f":"#REF!","v":{"$error":"#REF!"}},{"$f":"#REF!","v":{"$error":"#REF!"}},{"$f":"#REF!","v":{"$error":"#REF!"}},{"$f":"#REF!","v":{"$error":"#REF!"}},{"$f":"#REF!","v":{"$error":"#REF!"}},{"$f":"#REF!","v":{"$error":"#REF!"}},{"$f":"#REF!","v":{"$error":"#REF!"}},{"$f":"#REF!","v":{"$error":"#REF!"}},{"$f":"#REF!","v":{"$error":"#REF!"}},{"$f":"#REF!","v":{"$error":"#REF!"}},{"$f":"#REF!","v":{"$error":"#REF!"}},{"$f":"#REF!","v":{"$error":"#REF!"}}]
[{"$f":"#REF!","v":{"$error":"#REF!"}},{"$f":"#REF!","v":{"$error":"#REF!"}},{"$f":"#REF!","v":{"$error":"#REF!"}},{"$f":"#REF!","v":{"$error":"#REF!"}}]
[{"$f":"#REF!","v":{"$error":"#REF!"}},{"$f":"#REF!","v":{"$error":"#REF!"}},{"$f":"#REF!","v":{"$error":"#REF!"}},{"$f":"#REF!","v":{"$error":"#REF!"}},{"$f":"#REF!","v":{"$error":"#REF!"}},{"$f":"#REF!","v":{"$error":"#REF!"}},{"$f":"#REF!","v":{"$error":"#REF!"}},{"$f":"#REF!","v":{"$error":"#REF!"}},{"$f":"#REF!","v":{"$error":"#REF!"}},{"$f":"#REF!","v":{"$error":"#REF!"}},{"$f":"#REF!","v":{"$error":"#REF!"}},{"$f":"#REF!","v":{"$error":"#REF!"}},{"$f":"#REF!","v":{"$error":"#REF!"}},{"$f":"#REF!","v":{"$error":"#REF!"}},{"$f":"#REF!","v":{"$error":"#REF!"}},{"$f":"#REF!","v":{"$error":"#REF!"}},{"$f":"#REF!","v":{"$error":"#REF!"}},{"$f":"#REF!","v":{"$error":"#REF!"}},{"$f":"#REF!","v":{"$error":"#REF!"}},{"$f":"#REF!","v":{"$error":"#REF!"}},{"$f":"#REF!","v":{"$error":"#REF!"}},{"$f":"#REF!","v":{"$error":"#REF!"}},{"$f":"#REF!","v":{"$error":"#REF!"}},{"$f":"#REF!","v":{"$error":"#REF!"}}]
[{"$f":"#REF!","v":{"$error":"#REF!"}},{"$f":"IF(#REF!=\"\",\"\",#REF!)","v":{"$error":"#REF!"}},{"$f":"IF(#REF!=\"\",\"\",#REF!)","v":{"$error":"#REF!"}},{"$f":"IF(#REF!=\"\",\"\",#REF!)","v":{"$error":"#REF!"}},{"$f":"IF(#REF!=\"\",\"\",#REF!)","v":{"$error":"#REF!"}},{"$f":"IF(#REF!=\"\",\"\",#REF!)","v":{"$error":"#REF!"}},{"$f":"IF(#REF!=\"\",\"\",#REF!)","v":{"$error":"#REF!"}},{"$f":"IF(#REF!=\"\",\"\",#REF!)","v":{"$error":"#REF!"}},{"$f":"IF(#REF!=\"\",\"\",#REF!)","v":{"$error":"#REF!"}},{"$f":"IF(#REF!=\"\",\"\",#REF!)","v":{"$error":"#REF!"}},{"$f":"IF(#REF!=\"\",\"\",#REF!)","v":{"$error":"#REF!"}},{"$f":"IF(#REF!=\"\",\"\",#REF!)","v":{"$error":"#REF!"}},{"$f":"IF(#REF!=\"\",\"\",#REF!)","v":{"$error":"#REF!"}},{"$f":"IF(#REF!=\"\",\"\",#REF!)","v":{"$error":"#REF!"}},{"$f":"IF(#REF!=\"\",\"\",#REF!)","v":{"$error":"#REF!"}},{"$f":"IF(#REF!=\"\",\"\",#REF!)","v":{"$error":"#REF!"}},{"$f":"IF(#REF!=\"\",\"\",#REF!)","v":{"$error":"#REF!"}},{"$f":"IF(#REF!=\"\",\"\",#REF!)","v":{"$error":"#REF!"}},{"$f":"IF(#REF!=\"\",\"\",#REF!)","v":{"$error":"#REF!"}},{"$f":"IF(#REF!=\"\",\"\",#REF!)","v":{"$error":"#REF!"}},{"$f":"IF(#REF!=\"\",\"\",#REF!)","v":{"$error":"#REF!"}}]
[{"$f":"#REF!","v":{"$error":"#REF!"}},{"$f":"#REF!","v":{"$error":"#REF!"}},{"$f":"#REF!","v":{"$error":"#REF!"}},{"$f":"#REF!","v":{"$error":"#REF!"}},{"$f":"#REF!","v":{"$error":"#REF!"}},{"$f":"#REF!","v":{"$error":"#REF!"}},{"$f":"#REF!","v":{"$error":"#REF!"}},{"$f":"#REF!","v":{"$error":"#REF!"}},{"$f":"#REF!","v":{"$error":"#REF!"}},{"$f":"#REF!","v":{"$error":"#REF!"}},{"$f":"#REF!","v":{"$error":"#REF!"}},{"$f":"#REF!","v":{"$error":"#REF!"}},{"$f":"#REF!","v":{"$error":"#REF!"}},{"$f":"#REF!","v":{"$error":"#REF!"}},{"$f":"#REF!","v":{"$error":"#REF!"}},{"$f":"#REF!","v":{"$error":"#REF!"}}]
[{"$f":"#REF!","v":{"$error":"#REF!"}},{"$f":"#REF!","v":{"$error":"#REF!"}},{"$f":"#REF!","v":{"$error":"#REF!"}},{"$f":"#REF!","v":{"$error":"#REF!"}},{"$f":"#REF!","v":{"$error":"#REF!"}},{"$f":"IF(#REF!=\"\",\"\",#REF!)","v":{"$error":"#REF!"}},{"$f":"#REF!","v":{"$error":"#REF!"}},{"$f":"#REF!","v":{"$error":"#REF!"}},{"$f":"#REF!","v":{"$error":"#REF!"}},{"$f":"#REF!","v":{"$error":"#REF!"}},{"$f":"#REF!","v":{"$error":"#REF!"}},{"$f":"#REF!","v":{"$error":"#REF!"}},{"$f":"#REF!","v":{"$error":"#REF!"}},{"$f":"#REF!","v":{"$error":"#REF!"}},{"$f":"IF(#REF!=\"\", \"\",#REF!)","v":{"$error":"#REF!"}},{"$f":"IF(#REF!=\"\", \"\",#REF!)","v":{"$error":"#REF!"}}]
[{"$f":"#REF!","v":{"$error":"#REF!"}},{"$f":"#REF!","v":{"$error":"#REF!"}},{"$f":"#REF!","v":{"$error":"#REF!"}},{"$f":"#REF!","v":{"$error":"#REF!"}},{"$f":"#REF!","v":{"$error":"#REF!"}},{"$f":"#REF!","v":{"$error":"#REF!"}},{"$f":"#REF!","v":{"$error":"#REF!"}},{"$f":"#REF!","v":{"$error":"#REF!"}},{"$f":"#REF!","v":{"$error":"#REF!"}},{"$f":"#REF!","v":{"$error":"#REF!"}},{"$f":"#REF!","v":{"$error":"#REF!"}},{"$f":"#REF!","v":{"$error":"#REF!"}},{"$f":"#REF!","v":{"$error":"#REF!"}},{"$f":"#REF!","v":{"$error":"#REF!"}},{"$f":"#REF!","v":{"$error":"#REF!"}},{"$f":"#REF!","v":{"$error":"#REF!"}},{"$f":"#REF!","v":{"$error":"#REF!"}},{"$f":"#REF!","v":{"$error":"#REF!"}},{"$f":"#REF!","v":{"$error":"#REF!"}},{"$f":"#REF!","v":{"$error":"#REF!"}},{"$f":"#REF!","v":{"$error":"#REF!"}},{"$f":"#REF!","v":{"$error":"#REF!"}}]
[{"$f":"#REF!","v":{"$error":"#REF!"}},{"$f":"#REF!","v":{"$error":"#REF!"}},{"$f":"#REF!","v":{"$error":"#REF!"}},{"$f":"#REF!","v":{"$error":"#REF!"}}]
[{"$f":"#REF!","v":{"$error":"#REF!"}},{"$f":"#REF!","v":{"$error":"#REF!"}},{"$f":"#REF!","v":{"$error":"#REF!"}},{"$f":"#REF!","v":{"$error":"#REF!"}},{"$f":"#REF!","v":{"$error":"#REF!"}},{"$f":"#REF!","v":{"$error":"#REF!"}},{"$f":"#REF!","v":{"$error":"#REF!"}},{"$f":"#REF!","v":{"$error":"#REF!"}},{"$f":"#REF!","v":{"$error":"#REF!"}},{"$f":"#REF!","v":{"$error":"#REF!"}},{"$f":"#REF!","v":{"$error":"#REF!"}},{"$f":"#REF!","v":{"$error":"#REF!"}},{"$f":"#REF!","v":{"$error":"#REF!"}},{"$f":"#REF!","v":{"$error":"#REF!"}},{"$f":"#REF!","v":{"$error":"#REF!"}},{"$f":"#REF!","v":{"$error":"#REF!"}},{"$f":"#REF!","v":{"$error":"#REF!"}},{"$f":"#REF!","v":{"$error":"#REF!"}},{"$f":"#REF!","v":{"$error":"#REF!"}},{"$f":"#REF!","v":{"$error":"#REF!"}},{"$f":"#REF!","v":{"$error":"#REF!"}},{"$f":"#REF!","v":{"$error":"#REF!"}},{"$f":"#REF!","v":{"$error":"#REF!"}}]
[{"$f":"#REF!","v":{"$error":"#REF!"}},{"$f":"IF(#REF!=\"\",\"\",#REF!)","v":{"$error":"#REF!"}},{"$f":"IF(#REF!=\"\",\"\",#REF!)","v":{"$error":"#REF!"}},{"$f":"IF(#REF!=\"\",\"\",#REF!)","v":{"$error":"#REF!"}},{"$f":"IF(#REF!=\"\",\"\",#REF!)","v":{"$error":"#REF!"}},{"$f":"IF(#REF!=\"\",\"\",#REF!)","v":{"$error":"#REF!"}},{"$f":"IF(#REF!=\"\",\"\",#REF!)","v":{"$error":"#REF!"}},{"$f":"IF(#REF!=\"\",\"\",#REF!)","v":{"$error":"#REF!"}},{"$f":"IF(#REF!=\"\",\"\",#REF!)","v":{"$error":"#REF!"}},{"$f":"IF(#REF!=\"\",\"\",#REF!)","v":{"$error":"#REF!"}},{"$f":"IF(#REF!=\"\",\"\",#REF!)","v":{"$error":"#REF!"}},{"$f":"IF(#REF!=\"\",\"\",#REF!)","v":{"$error":"#REF!"}},{"$f":"IF(#REF!=\"\",\"\",#REF!)","v":{"$error":"#REF!"}},{"$f":"IF(#REF!=\"\",\"\",#REF!)","v":{"$error":"#REF!"}},{"$f":"IF(#REF!=\"\",\"\",#REF!)","v":{"$error":"#REF!"}},{"$f":"IF(#REF!=\"\",\"\",#REF!)","v":{"$error":"#REF!"}},{"$f":"IF(#REF!=\"\",\"\",#REF!)","v":{"$error":"#REF!"}},{"$f":"IF(#REF!=\"\",\"\",#REF!)","v":{"$error":"#REF!"}},{"$f":"IF(#REF!=\"\",\"\",#REF!)","v":{"$error":"#REF!"}},{"$f":"IF(#REF!=\"\",\"\",#REF!)","v":{"$error":"#REF!"}}]
[{"$f":"#REF!","v":{"$error":"#REF!"}},{"$f":"#REF!","v":{"$error":"#REF!"}},{"$f":"#REF!","v":{"$error":"#REF!"}},{"$f":"#REF!","v":{"$error":"#REF!"}},{"$f":"#REF!","v":{"$error":"#REF!"}},{"$f":"#REF!","v":{"$error":"#REF!"}},{"$f":"#REF!","v":{"$error":"#REF!"}},{"$f":"#REF!","v":{"$error":"#REF!"}},{"$f":"#REF!","v":{"$error":"#REF!"}},{"$f":"#REF!","v":{"$error":"#REF!"}},{"$f":"#REF!","v":{"$error":"#REF!"}},{"$f":"#REF!","v":{"$error":"#REF!"}},{"$f":"#REF!","v":{"$error":"#REF!"}},{"$f":"#REF!","v":{"$error":"#REF!"}},{"$f":"#REF!","v":{"$error":"#REF!"}},{"$f":"#REF!","v":{"$error":"#REF!"}}]
[{"$f":"#REF!","v":{"$error":"#REF!"}},{"$f":"#REF!","v":{"$error":"#REF!"}},{"$f":"#REF!","v":{"$error":"#REF!"}},{"$f":"#REF!","v":{"$error":"#REF!"}},{"$f":"#REF!","v":{"$error":"#REF!"}},{"$f":"IF(#REF!=\"\",\"\",#REF!)","v":{"$error":"#REF!"}},{"$f":"#REF!","v":{"$error":"#REF!"}},{"$f":"#REF!","v":{"$error":"#REF!"}},{"$f":"#REF!","v":{"$error":"#REF!"}},{"$f":"#REF!","v":{"$error":"#REF!"}},{"$f":"#REF!","v":{"$error":"#REF!"}},{"$f":"#REF!","v":{"$error":"#REF!"}},{"$f":"#REF!","v":{"$error":"#REF!"}},{"$f":"#REF!","v":{"$error":"#REF!"}},{"$f":"IF(#REF!=\"\",\"\",#REF!)","v":{"$error":"#REF!"}},{"$f":"IF(#REF!=\"\",\"\",#REF!)","v":{"$error":"#REF!"}}]

{"sheet":"FW metal nonplant","index":5,"n_rows":90,"n_cols":54,"rows_kept":90,"cut":false,"hidden":false,"merged":[[3,4,7,4],[9,2,9,4],[11,2,13,2],[11,7,13,7],[14,2,16,2],[14,7,16,7],[17,2,19,2],[17,7,19,7],[20,2,21,2],[20,7,21,7],[22,2,24,2],[22,7,24,7],[25,2,27,2],[25,7,27,7],[28,2,30,2],[28,7,30,7],[31,2,33,2],[31,7,33,7],[34,2,36,2],[34,7,36,7],[37,2,39,2],[37,7,39,7],[40,2,42,2],[40,7,42,7],[43,2,45,2],[43,7,45,7],[46,2,48,2],[46,7,48,7],[49,2,51,2],[49,7,51,7],[62,7,64,7],[74,2,77,2],[74,7,77,7],[52,2,54,2],[52,7,54,7],[56,7,58,7],[65,7,67,7],[68,7,70,7],[71,2,73,2],[71,7,73,7],[59,7,61,7]]}
[null,1,"Fill in the blank cells below, based on information provided in the paper being assessed. You can either pick an option from the dropdown list or add the appropriate detail using the 'Add to list' button. ",null,null,null,null,null,null,null,null,null,null,null,"* All the text in RED are used for drop down list ,make changes with caution."]
[null,null,"Category",{"$f":"IF(AF3=\"\",0,1)","v":1},"Freshwater/metal/non- plant",{"$f":"IF(E3=\"\",0,1)","v":1},"Citation No.",{"$f":"IF(ISERROR(FIND(\"-\",E3)),E3,LEFT(E3,FIND(\"-\",E3)-1))","v":"ANZG3335"},null,"Taxonomic group",null,null,null,null,"Species",null,null,"Lifestage",null,null,"Exposure duration",null,null,"Measure of toxicity",null,null,"Toxicity endpoint",null,null,"Taxonomic group",null,null,"Phylum",null,null,"Class",null,null,"Media",null,null,"Temperature ",null,null,"Acute Or Chronic",null,null,"PH",null,null,"Salinity/Comdictivity"]
[null,null,"Paper and data unique identifier(eg. 1-1,10-150)",{"$f":"IF(AI3=\"\",0,1)","v":1},"ANZG3335-2",{"$f":"IF(E4=\"\",0,1)","v":1},"Species (Scientific name)",null,null,"Phylum",null,null,null,null,"Aedes albopictus",29,{"$f":"IF(P3=0,\"\",INDEX(O3:O111,P3))","v":"Monoraphidium arcuatum"},"1 month",6,{"$f":"IF(S3=0,\"\",INDEX(R3:R111,S3))","v":"Exponential growth phase"},"10 d",10,{"$f":"IF(V3=0,\"\",INDEX(U3:U111,V3))","v":"3-d"},"EC10",1,{"$f":"IF(Y3=0,\"\",INDEX(X3:X111,Y3))","v":"EC10"},"Biomass",3,{"$f":"IF(AB3=0,\"\",INDEX(AA3:AA111,AB3))","v":"Growth"},"Amphibia",6,{"$f":"IF(AE3=0,\"\",INDEX(AD3:AD111,AE3))","v":"Microalga"},"Arthropoda",3,{"$f":"IF(AH3=0,\"\",INDEX(AG3:AG111,AH3))","v":"Chlorophyta"},"Actinopterygii",5,{"$f":"IF(AK3=0,\"\",INDEX(AJ3:AJ111,AK3))","v":"Chlorophyceae"},"Dechlorinated tap water",6,{"$f":"IF(AN3=0,\"\",INDEX(AM3:AM111,AN3))","v":"Synthetic water"},10,8,{"$f":"IF(AQ3=0,\"\",INDEX(AP3:AP111,AQ3))","v":27},"Acute ",2,{"$f":"IF(AT3=0,\"\",INDEX(AS3:AS111,AT3))","v":"Chronic"},6.3,13,{"$f":"IF(AW3=0,\"\",INDEX(AV3:AV111,AW3))","v":"N.A."},null,null,"N.A.",1]
[null,null,"Citation",{"$f":"IF(AL3=\"\",0,1)","v":1},"Adams M.S., McKnight K.S., Gissi F.F, Stone S., and Stauber, J.L. (2017) Copper toxicity to marine and freshwater microalgae. CSIRO Land and Water, Technical Report EP18554. Lucas Heights, NSW, Australia. 10pp",{"$f":"IF(H8=\"\",0,1)","v":1},"Lifestage",null,null,"Class",null,null,null,null,"Alathyria profuga",null,null,"1 year old",null,null,"11 hour",null,null,"EC20",null,null,"Condition",null,null,"Cnidaria",null,null,"Ascomycota",null,null,"Amphibia",null,null,"Freshwater",null,null,12,null,null,"Chronic",null,null,6.6]
[null,null,null,{"$f":"IF(AO3=\"\",0,1)","v":1},null,{"$f":"IF(AX3=\"\",0,1)","v":1},"Exposure duration",null,null,"Media",null,null,null,null,"Ambystoma opacum",null,null,"Adult",null,null,"13 days",null,null,"Growth",null,null,"Growth",null,null,"Crustacea",null,null,"Chlorophyta",null,null,"Bivalvia",null,null,"Marinewater",null,null,20,null,null,"N.A.",null,null,6.7]
[null,null,null,{"$f":"IF(AR3=\"\",0,1)","v":1},null,{"$f":"IF(Q3=\"\",0,1)","v":1},"Measure of toxicity",null,null,"Temperature ",null,null,null,null,"Amerianna cumingi",null,null,"Budding",null,null,"2 d",null,null,"IC-10",null,null,"LOEC",null,null,"Fish",null,null,"Chordata",null,null,"Branchiopoda",null,null,"N.A.",null,null,20.5,null,null,null,null,null,6.8]
[null,null,null,{"$f":"IF(AU3=\"\",0,1)","v":1},null,{"$f":"IF(T3=\"\",0,1)","v":1},"Toxicity endpoint",null,null,"Acute Or Chronic ",null,null,null,null,"Australian Bass",null,null,"Egg to larvae",null,null,"215-d",null,null,"LC50",null,null,"Mortality",null,null,"Fungi",null,null,"Cnidaria",null,null,"Chlorophyceae",null,null,"reconstituted water",null,null,22,null,null,null,null,null,7]
[null,null,null,null,null,{"$f":"IF(W3=\"\",0,1)","v":1},"Toxicity value",0.45,null,"PH",null,null,null,null,"Chlorella sp",null,null,"Exponential growth phase",null,null,"21-d",null,null,"LOEC",null,null,"Mortality",null,null,"Microalga",null,null,"Mollusca",null,null,"Cladocera",null,null,"Synthetic water",null,null,23,null,null,null,null,null,7.3]
[null,2,"Select the appropriate answer option to each question. Comments can be added to the cells in column H.",null,null,{"$f":"IF(Z3=\"\",0,1)","v":1},null,null,null,"Salinity/Conductivity","N.A.",null,null,null,"Cirrhinus mrigala",null,null,"hyphal",null,null,"28-d",null,null,"N.A.",null,null,"N.A.",null,null,"Mollusc",null,null,"N.A.",null,null,"Eurotiomycetes",null,null,"USEPA standard synthetic water",null,null,26.5,null,null,null,null,null,7.6]
[null,"*","If the selected answer option does not work try clicking on any other cell first and then click back on the answer option again.",null,null,{"$f":"IF(AC3=\"\",0,1)","v":1},null,null,null,null,null,null,null,null,"Cottus bairdi",null,null,"Juvenile",null,null,"2-d",null,null,"NEC",null,null,"Population",null,null,"N.A.",null,null,"Tracheophyta",null,null,"Gastropoda",null,null,"well water",null,null,27,null,null,null,null,null,7.8]
[null,"No.","Question","Marks Awarded","Answer Options","Option References","Scores","Answers",null,null,null,null,null,null,"Cucumerunio novaehollandiae",null,null,"larvae",null,null,"30-d",null,null,"NOEC",null,null,"Population growth",null,null,null,null,null,null,null,null,"Hydrozoa",null,null,null,null,null,28,null,null,null,null,null,7.9]
[null,null,"Was the duration of the exposure stated (e.g. 48 or 96 h)?",10,null,1,{"$f":"IF(F15=0,0,INDEX($D12:$D13,F12,1))","v":10},"3-d",null,null,null,null,null,null,"Cyprinella monacha",null,null,"Mixed",null,null,"3-d",null,null,"NOEC",null,null,"Reproduction",null,null,null,null,null,null,null,null,"N.A.",null,null,null,null,null,29,null,null,null,null,null,8.1999999999999993]
[null,1,null,0,null,null,null,null,null,null,null,null,null,null,"Daphnia longspina",null,null,"N.A.",null,null,"42 day",null,null,null,null,null,null,null,null,null,null,null,null,null,null,"Trebouxiophyceae",null,null,null,null,null,30,null,null,null,null,null,8.3000000000000007]
[null,null,null,null,null,null,null,null,null,null,null,null,null,null,"Echyridella menziesii",null,null,"Neonate",null,null,"4-d",null,null,null,null,null,null,null,null,null,null,null,null,null,null,null,null,null,null,null,null,"15°C",null,null,null,null,null,8.4]
[null,null,"Was the biological endpoint (e.g. immobilization or population growth) stated and defined (10 marks)? Award 5 marks if the biological endpoint is only stated.",10,null,1,{"$f":"IF(F15=0,0,INDEX($D15:$D17,F15,1))","v":10},"Algal cell density was determined\ndaily (24, 48 and 72 h) using a flow cytometer gated ..",null,null,null,null,null,null,"Erimonax monachus",null,null,null,null,null,"60 d",null,null,null,null,null,null,null,null,null,null,null,null,null,null,null,null,null,null,null,null,"18-27",null,null,null,null,null,"N.A."]
[null,2,null,5,null,null,null,null,null,null,null,null,null,null,"Etheostoma fonticola",null,null,null,null,null,"60-d",null,null,null,null,null,null,null,null,null,null,null,null,null,null,null,null,null,null,null,null,"25°C",null,null,null,null,null,"PH11"]
[null,null,null,0,null,null,null,null,null,null,null,null,null,null,"Fluminicola sp.",null,null,null,null,null,"6-d",null,null,null,null,null,null,null,null,null,null,null,null,null,null,null,null,null,null,null,null,"N.A.",null,null,null,null,null,"PH7.0"]
[null,null,"Was the biological effect stated (e.g. LC or NOEC)?",5,null,1,{"$f":"IF(F18=0,0,INDEX($D18:$D19,F18,1))","v":5},"EC10 growth rate",null,null,null,null,null,null,"Hydra viridissima",null,null,null,null,null,"72 hour"]
[null,3,null,0,null,null,null,null,null,null,null,null,null,null,"Hyridella australis",null,null,null,null,null,"7-d"]
[null,null,null,null,null,null,null,null,null,null,null,null,null,null,"Hyridella depressa",null,null,null,null,null,"90d"]
[null,4,"Was the biological effect quantified (e.g. 50% effect, 25% effect)? \nNote: The effect for NOEC and LOEC data must be quantified.",5,null,1,{"$f":"IF(F21=0,0,INDEX($D21:$D22,F21,1))","v":5},10,null,null,null,null,null,null,"Hyridella drapeta",null,null,null,null,null,"96 h"]
[null,null,null,0,null,null,null,null,null,null,null,null,null,null,"Mogurnda mogurnda",null,null,null,null,null,"N.A."]
[null,5,"Were appropriate controls (e.g. a no-toxicant control and/or solvent control) used?",5,null,1,{"$f":"IF(F23=0,0,INDEX($D23:$D24,F23,1))","v":5},"not clearly stated what the controls are, but reference methods to OECD 201",null,null,null,null,null,null,"Moinodaphnia macleayi"]
[null,null,null,0,null,null,null,null,null,null,null,null,null,null,"N.A."]
[null,null,null,null,null,null,null,null,null,null,null,null,null,null,"Pelteobagrus fulvidraco"]
[null,6,"Was each control and contaminant concentration at least duplicated?",5,null,1,{"$f":"IF(F26=0,0,INDEX($D26:$D27,F26,1))","v":5},"two replicates and repeated 2 times",null,null,null,null,null,null,"Penicillium sp"]
[null,null,null,0,null,null,null,null,null,null,null,null,null,null,"Pomacea paludosa"]
[null,null,null,null,null,null,null,null,null,null,null,null,null,null,"Prosopium williamsoni"]
[null,7,"Were test acceptability criteria stated (e.g. mortality in controls must not exceed a certain percentage) (5 marks)?\nOR Were test acceptability criteria inferred (e.g. test method used [USEPA, OECD, ASTM etc.]) (award 2 marks). \nNote: Data that fail the acceptability criteria are automatically deemed to be of unacceptable quality and must not be used. ",5,null,1,{"$f":"IF(F29=0,0,INDEX($D29:$D31,F29,1))","v":5},"Variability in the controls <20%.\nControl algal 72‐h growth rates >1 doubling/day",null,null,null,null,null,null,"Salmo trutta"]
[null,null,null,2,null,null,null,null,null,null,null,null,null,null,"Velesunio ambiguus"]
[null,null,null,0,null,null,null,null,null,null,null,null,null,null,"Monoraphidium arcuatum"]
[null,8,"Were the characteristics of the test organism (e.g. length, mass, age) stated?",5,null,1,{"$f":"IF(F32=0,0,INDEX($D32:$D34,F32,1))","v":5},"Exponentially growing microalgal cells, initial\ncell density of 2–4×10^3 cells/mL"]
[null,null,null,0]
[]
[null,9,"Was the type of test media used stated?",5,null,1,{"$f":"IF(F35=0,0,INDEX($D35:$D37,F35,1))","v":5},"synthetic soft water"]
[null,null,null,0]
[]
[null,null,"Was the type of exposure (e.g. static, flow through) stated? ",4,null,1,{"$f":"IF(F38=0,0,INDEX($D38:$D40,F38,1))","v":4},"static"]
[null,10,null,0]
[]
[null,null,"Were the contaminant concentrations measured at the beginning and end of the exposure (4 marks)? Award 2 marks if they were measured only once during the test.\nNote: If the concentrations were not measured then automatically the data cannot be high quality. ",4,null,1,{"$f":"IF(F41=0,0,INDEX($D41:$D43,F41,1))","v":4}]
[null,11,null,2]
[null,null,null,0]
[null,null,"Were parallel reference toxicant toxicity tests conducted?",4,null,2,{"$f":"IF(F44=0,0,INDEX($D44:$D46,F44,1))","v":0}]
[null,12,null,0]
[]
[null,null,"Was there a concentration–response relationship either observable or stated?",4,null,1,{"$f":"IF(F47=0,0,INDEX($D47:$D49,F47,1))","v":4}]
[null,13,null,0]
[]
[null,null,"Was an appropriate statistical method or model used to determine the toxicity?\nNote: They should be accepted by a recognised national or international regulatory body (e.g. USEPA, OECD, ASTM). ",4,null,1,{"$f":"IF(F50=0,0,INDEX($D50:$D52,F50,1))","v":4}]
[null,14,null,0]
[]
[null,15,"For LC/EC/BEC data was an estimate of variability provided? \nOR \nFor NO EC/LOEC data was the significance level 0.05 or less?  \n\n",4,null,1,{"$f":"IF(F53=0,0,INDEX($D53:$D55,F53,1))","v":4},"95% CI"]
[null,null,null,0]
[]
[null,16,"Were the following parameters measured and stated? (3 marks if measured and stated, 1 mark if just measured)."]
[null,null,null,3,null,2,{"$f":"IF(F57=0,0,INDEX($D57:$D59,F57,1))","v":1},"measured but not stated"]
[null,16.100000000000001,"pH",1]
[null,null,null,0]
[null,null,null,3,null,3,{"$f":"IF(F60=0,0,INDEX($D60:$D62,F60,1))","v":0}]
[null,16.2,"Hardness",1]
[null,null,null,0]
[null,null,null,3,null,3,{"$f":"IF(F63=0,0,INDEX($D63:$D65,F63,1))","v":0}]
[null,16.3,"Alkalinity",1]
[null,null,null,0]
[null,null,null,3,null,1,{"$f":"IF(F66=0,0,INDEX($D66:$D68,F66,1))","v":3},"<0.5 mg/L"]
[null,16.399999999999999,"Organic carbon concentration",1]
[null,null,null,0]
[null,null,null,3,null,3,{"$f":"IF(F69=0,0,INDEX($D69:$D71,F69,1))","v":0}]
[null,16.5,"Dissolved Oxygen",1]
[null,null,null,0]
[null,null,"Was the temperature measured and stated (3 marks)? Award 1 mark if the temperature was measured but not stated or if only the temperature settings of the room or chamber are stated.",3,null,2,{"$f":"IF(F72=0,0,INDEX($D72:$D74,F72,1))","v":1},"room temperature settings stated"]
[null,17,null,1]
[null,null,null,0]
[null,null,"Were test solutions, blanks and/or controls tested for contamination OR were analytical reagent grade chemicals used or the highest possible purity chemicals used for the experiment? (3 marks).",3,null,2,{"$f":"IF(F75=0,0,INDEX($D75:$D76,F75,1))","v":0},"not stated"]
[null,18,null,0]
[]
[null,null,null,null,null,null,null,null,{"$f":"(COUNTIF(F12:F76,\"=0\"))+COUNTIF(F2:F10,\"=0\")+COUNTIF(D2:D7,\"=0\")","v":0}]
[]
[]
[null,null,"Total score",null,null,null,{"$f":"IF(SUM(G12:G75)=0,\"\",SUM(G12:G75))","v":80}]
[null,null,"Total Max. possible score for the various types of data and contaminants ",null,{"$f":"D12+D15+D18+D21+D23+D26+D29+D32+D35+D38+D41+D44+D47+D50+D53+D57+D66+D69+D72+D75+D63+D60","v":100}]
[null,null,"Quality Score",null,{"$f":"\"= [Total score / Total possible score] * 100 = \"","v":"= [Total score / Total possible score] * 100 = "},null,{"$f":"IF(ISERROR(G81/E82),#N/A,G81/E82)","v":0.8},{"$f":"IF(F41=3,\"The highest possible grade for this datum is acceptable.\",\"\")","v":""}]
[]
[null,null,"H = high quality                           Quality score ≥ 80%     "]
[null,null,"A = acceptable quality         > 50% Quality score < 80%  "]
[null,null,"U = unacceptable quality              Quality score ≤ 50% "]
[]
[3,null,"Click the 'Save & Update' button to save and export the answers to the 'All results' worksheet. "]
[null,null,"Select the 'Reset Answers' button if you wish to clear all answers."]

{"sheet":"FW metal nonplant_WS","index":6,"n_rows":125,"n_cols":26,"rows_kept":125,"cut":false,"hidden":false,"merged":[]}
[]
["Question No.",1,2,3,4,5,6,7,8,9,10,11,12,13,14,15,16.100000000000001,16.2,16.3,16.399999999999999,16.600000000000001,17,18,"Total Score","Quality Score"]
["Short Questions","Duration of the exposure ","Biological endpoint","Biological effect stated or not","Biological effect quantified or not","Appropriate controls","Control & contaminant concentration","Test acceptability criteria","Characteristics of the test organism"," Type of test media","Type of exposure","Contaminant concentrations","Parallel reference toxicant toxicity tests","Concentration–response relationship","Determine the toxicity","NOEC/LOEC or LC/EC/BEC","pH","Hardness","Alkalinity","Organic carbon concentration","Dissolved Oxygen","Temperature","Grade or purity"]
["Marks Awarded ","10 or 0","10,5 or 0","5 or 0 ","5 or 0 ","5 or 0 ","5 or 0 ","5 or 0 ","5 or 0 ","5 or 0 ","4 or 0","4 or 2 or 0","4 or 2","4 or 2","4 or 2","4 or 2","3 or 1 or 0","3 or 1 or 0","3 or 1 or 0","3 or 1 or 0","3 or 1 or 0","3 or 0","3 or 0 "]
["Max. Possible Score",10,10,5,5,5,5,5,5,5,4,4,4,4,4,4,3,3,3,3,3,3,3,{"$f":"SUM(B5:W5)","v":100}]
["Category","Freshwater/metal/non- plant","Paper and data unique identifier(eg. 1-1,10-150)","169274-1"]
["Scores",10,5,0,5,5,5,0,5,5,4,2,0,4,4,4,1,1,1,0,0,1,3,65,0.65,""]
["Answers","10-days after hatching","Embryo survival, early larval survival","","In plot but not explicitly stated","0 Cu control","4x clutches with 10 reps (10 eggs) per concentration","","Laboratory reared embryos","Synthetic water","Daily static renewal","Measured 3x per concentration, but not stated whether at start or end","","","","","","","","","","",""]
["Category","Freshwater/metal/non- plant","Paper and data unique identifier(eg. 1-1,10-150)","167561-1"]
["Scores",10,10,5,5,5,5,2,5,5,4,2,0,4,4,4,3,0,0,0,3,1,3,80,0.8,""]
["Answers","21-day","Intrinsic rate of release","LOEC provided in table","","0 copper conc","","Following OECD 1997","<24 hr neonates","ASTM hard water","Static renewal (daily water change)","Measured but not  clear when ","","For the sensitive","ANOVA and Dunnetts","","Range 7.6-7.9","","","","92-100% saturation","",""]
["Category","Freshwater/metal/non- plant","Paper and data unique identifier(eg. 1-1,10-150)","167561-2"]
["Scores",10,10,5,5,5,5,2,5,5,4,2,0,4,4,4,3,0,0,0,3,1,3,80,0.8,""]
["Answers","21-day","Intrinsic rate of release","LOEC provided in table","","0 copper conc","","Following OECD 1997","<24 hr neonates","ASTM hard water","Static renewal (daily water change)","Measured but not  clear when ","","For the sensitive","ANOVA and Dunnetts","","Range 7.6-7.9","","","","92-100% saturation","",""]
["Category","Freshwater/metal/non- plant","Paper and data unique identifier(eg. 1-1,10-150)","115600-1"]
["Scores",10,10,0,5,5,5,0,5,5,4,4,0,4,4,4,3,3,3,0,3,3,3,83,0.83,""]
["Answers","60-d","Growth weight gain % defined","","In plot","0 Cu control","3 reps of 12 fish each","But control survival was 100%; good growth in controls","Fry, mean size 0.92 g","Dechlorinated tap water","static renewal, renewed every 2 days","Measured every 24 hrs","","Observed in tabulated data","ANOVA",0.05,"Provided in Table 2","Provided in Table 2","Provided in Table 2","","Provided in Table 2","Provided in Table 2","Cu measured in controls"]
["Category","Freshwater/metal/non- plant","Paper and data unique identifier(eg. 1-1,10-150)","100037-1"]
["Scores",10,10,5,5,5,5,2,5,5,4,4,0,4,4,4,3,3,3,3,3,3,3,93,0.93,""]
["Answers","21-day","Growth / biomass -total dry wt of survivors","ChV, NOEC, LOEC","","0 copper control","4 reps, 10 fish each","Not stated","Swimup","Well water diltured with deionised water","intermittent flow through ","Measured weekly","","Observable in data table","ANOVA, Dunnetts",0.05,"Yes, in paper plus in SI","Yes, in paper plus in SI","Yes, in paper plus in SI","Yes, in paper plus in SI","In SI ","In SI ","All info provided in SI"]
["Category","Freshwater/metal/non- plant","Paper and data unique identifier(eg. 1-1,10-150)","100037-2"]
["Scores",10,10,5,5,5,5,2,5,5,4,4,0,4,4,4,3,3,3,3,3,3,3,93,0.93,""]
["Answers","21-day","","ChV, NOEC, LOEC","","0 copper control","4 reps, 10 fish each","Not stated","Swimup","Well water diltured with deionised water","intermittent flow through ","Measured weekly","","Observable in data table","ANOVA, Dunnetts",0.05,"Yes, in paper plus in SI","Yes, in paper plus in SI","Yes, in paper plus in SI","Yes, in paper plus in SI","In SI ","In SI ","All info provided in SI"]
["Category","Freshwater/metal/non- plant","Paper and data unique identifier(eg. 1-1,10-150)","100037-3"]
["Scores",10,10,5,5,5,5,2,5,5,4,4,0,4,4,4,3,3,3,3,3,3,3,93,0.93,""]
["Answers","28-d","","ChV, NOEC, LOEC","","0 copper control","4 reps, 10 fish each","Not stated","Swimup","Well water diltured with deionised water","intermittent flow through ","Measured weekly","","Observable in data table","ANOVA, Dunnetts",0.05,"Yes, in paper plus in SI","Yes, in paper plus in SI","Yes, in paper plus in SI","Yes, in paper plus in SI","In SI ","In SI ","All info provided in SI"]
["Category","Freshwater/metal/non- plant","Paper and data unique identifier(eg. 1-1,10-150)","100037-4"]
["Scores",10,10,5,5,5,5,2,5,5,4,4,0,4,4,4,3,3,3,3,3,3,3,93,0.93,""]
["Answers","28-d","Biomass as dry weight all surviving","ChV, NOEC, LOEC","","0 copper control","4 reps, 10 fish each","Not stated","Swimup","Well water diltured with deionised water","intermittent flow through ","Measured weekly","","Observable in data table","ANOVA, Dunnetts",0.05,"Yes, in paper plus in SI","Yes, in paper plus in SI","Yes, in paper plus in SI","Yes, in paper plus in SI","In SI ","In SI ","All info provided in SI"]
["Category","Freshwater/metal/non- plant","Paper and data unique identifier(eg. 1-1,10-150)","91332-1"]
["Scores",10,10,5,0,5,5,2,5,5,4,4,4,0,4,0,1,1,1,0,3,1,3,73,0.73,""]
["Answers","30-d","Biomass as dry weight all surviving","ChV, NOEC, LOEC","","0 copper control","4 reps, 10 fish each","Not stated","Swimup","Moderately hard ASTM water","intermittent flow through ","Measured biweekly","PCP at same time","Not provided","Linear interpolation using ToxStat","No","","","","","","",""]
["Category","Freshwater/metal/non- plant","Paper and data unique identifier(eg. 1-1,10-150)","91332-2"]
["Scores",10,10,5,0,5,5,2,5,5,4,4,4,0,4,0,1,1,1,0,3,1,3,73,0.73,""]
["Answers","30-d","Biomass as dry weight all surviving","ChV, NOEC, LOEC","","0 copper control","4 reps, 10 fish each","Not stated","Swimup","Moderately hard ASTM water","intermittent flow through ","Measured biweekly","PCP at same time","Not provided","Linear interpolation using ToxStat","No","","","","","","",""]
["Category","Freshwater/metal/non- plant","Paper and data unique identifier(eg. 1-1,10-150)","91332-2"]
["Scores",10,10,5,0,5,5,2,5,5,4,4,4,0,4,0,1,1,1,0,3,1,3,73,0.73,""]
["Answers","30-d","Survival","IC10 etc ChV, NOEC, LOEC","","0 copper control","4 reps, 10 fish each","Not stated","Swimup","Moderately hard ASTM water","intermittent flow through ","Measured biweekly","PCP at same time","Not provided","Linear interpolation using ToxStat","No","","","","","","",""]
["Category","Freshwater/metal/non- plant","Paper and data unique identifier(eg. 1-1,10-150)","91332-4"]
["Scores",10,10,5,0,5,5,2,5,5,4,4,4,0,4,0,1,1,1,0,3,1,3,73,0.73,""]
["Answers","30-d","Survival","IC10 etc ChV, NOEC, LOEC","","0 copper control","4 reps, 10 fish each","Not stated","Swimup","Moderately hard ASTM water","intermittent flow through ","Measured biweekly","PCP at same time","Not provided","Linear interpolation using ToxStat","No","","","","","","",""]
["Category","Freshwater/metal/non- plant","Paper and data unique identifier(eg. 1-1,10-150)","91332-5"]
["Scores",10,10,5,0,5,5,2,5,5,4,4,4,0,4,0,1,1,1,0,3,1,3,73,0.73,""]
["Answers","30-d","biomass (total dry weight/replicate)","IC10 etc ChV, NOEC, LOEC","","0 copper control","4 reps, 10 fish each","Not stated","Swimup","Moderately hard ASTM water","intermittent flow through ","Measured biweekly","PCP at same time","Not provided","Linear interpolation using ToxStat","No","","","","","","",""]
["Category","Freshwater/metal/non- plant","Paper and data unique identifier(eg. 1-1,10-150)","91332-6"]
["Scores",10,10,5,0,5,5,2,5,5,4,4,4,0,4,0,1,1,1,0,3,1,3,73,0.73,""]
["Answers","30-d","biomass (total dry weight/replicate)","IC10 etc ChV, NOEC, LOEC","","0 copper control","4 reps, 10 fish each","Not stated","Swimup","Moderately hard ASTM water","intermittent flow through ","Measured biweekly","PCP at same time","Not provided","Linear interpolation using ToxStat","No","","","","","","",""]
["Category","Freshwater/metal/non- plant","Paper and data unique identifier(eg. 1-1,10-150)","151380-1"]
["Scores",10,10,5,0,5,5,0,5,5,4,4,4,4,4,4,3,3,3,3,3,3,3,90,0.9,""]
["Answers","28-d","Survival - observation of movement using microscopic examination","NOEC","","","Two reps per treatment","Not stated but control survival was 100%","Size provided","Hard ASTM water","Static with some renewal","Every two weeks","NH3 and PCP at same time","Observed","AONVA, Dunnetts",0.05,"Provided in Table 7","Provided in Table 7","Provided in Table 7","Provided in Table 7","Provided in Table 7","Provided in Table 7","Controls all measured low Cu"]
["Category","Freshwater/metal/non- plant","Paper and data unique identifier(eg. 1-1,10-150)","115302-1"]
["Scores",10,10,5,0,5,5,0,5,5,0,4,0,4,4,4,3,3,3,3,3,1,3,80,0.8,""]
["Answers","Whole exposure 230-d","growth measurements (total length, aperture length, diameter, wet weight) were made in accordance with procedures\ndescribed by Boulding and Hay","NOEC","Not quantified as % effect","yes, 0 Cu control","4 reps per treatment, 3 treatments plus control; 15 snails per rep","","< 4 day old","UV sterilised carbon filtered lab freshwater, pH and hardness adjusted","Not stated but was static renewal","Yes, each renewal","","Observable in data table","ANOVA with Dunnetts","p <0.05",7.9,"153-160","62-64",0.3,"8.1 mg/L","","Yes"]
["Category","Freshwater/metal/non- plant","Paper and data unique identifier(eg. 1-1,10-150)","117718-1"]
["Scores",10,10,5,0,5,5,2,5,5,4,4,4,4,4,0,3,3,3,3,3,3,3,88,0.88,""]
["Answers","30 d for eggs then 60 d for fry","","","","","4 replicates of 10 organisms each","","Eggs","Dechlorinte Fort Collins municipal tap water","Flow through","Collected weekly","Cu, Zn, Cd at same time","Observable","ANOVA etc using ToxStat","","In table 4","In table 4","In table 4","In table 4","In table 4","In table 4","AR grade, metals measured"]
["Category","Freshwater/metal/non- plant","Paper and data unique identifier(eg. 1-1,10-150)","ANZG234-1"]
["Scores",10,10,5,0,5,5,5,5,5,4,4,0,0,4,0,3,3,3,3,3,3,3,83,0.83,""]
["Answers","72 h","Endpoint stated as mortality. Mortality defined as not closing in response to brine exposure or in being and remaining closed before and after brine exposure.","NEC provided in table, LC50","Not quantified as % effect","control was the reconstituted water used in testing but without added toxicants. This isn't explicitly stated but implied","triplicate","Greater than 90% viability required for inclusion in testing. Test acceptability criteria were stated as mean control survival >90% and control coefficient of variaiton <7% at the end of the test.","age <2 hours old","Test water was reconstituted water made from deionized water (MIlliQ), chemistry of the water is summarized in a table","static","start and end","","concentration response curves were fitted using non-linear regression models. Nothing stated as to the relationship itself, used to determine LC50 values. An example is shown in Supplementary material. ","no effect concentration (NEC) for each metal was calculated using a Bayesian approach (OpenBugs version 3.2.3; Fox, 2010)","",7,42,22,"DOC<0.1 mg/L   stated in Table1 legend",">85% saturation","","AR Grade chemicals, control water measured"]
["Category","Freshwater/metal/non- plant","Paper and data unique identifier(eg. 1-1,10-150)","ANZG234-2"]
["Scores",10,10,5,0,5,5,5,5,5,4,4,0,0,4,0,3,3,3,3,3,3,3,83,0.83,""]
["Answers","72 h","Endpoint stated as mortality. Mortality defined as not closing in response to brine exposure or in being and remaining closed before and after brine exposure.","NEC provided in table, LC50","Not quantified as % effect","control was the reconstituted water used in testing but without added toxicants. This isn't explicitly stated but implied","triplicate","Greater than 90% viability required for inclusion in testing. Test acceptability criteria were stated as mean control survival >90% and control coefficient of variaiton <7% at the end of the test.","age <2 hours old","Test water was reconstituted water made from deionized water (MIlliQ), chemistry of the water is summarized in a table","static","start and end","","concentration response curves were fitted using non-linear regression models. Nothing stated as to the relationship itself, used to determine LC50 values. An example is shown in Supplementary material. ","no effect concentration (NEC) for each metal was calculated using a Bayesian approach (OpenBugs version 3.2.3; Fox, 2010)","",7,42,22,"DOC<0.1 mg/L   stated in Table1 legend",">85% saturation","","AR Grade chemicals, control water measured"]
["Category","Freshwater/metal/non- plant","Paper and data unique identifier(eg. 1-1,10-150)","ANZG234-3"]
["Scores",10,10,5,0,5,5,5,5,5,4,4,0,0,4,0,3,3,3,3,3,3,3,83,0.83,""]
["Answers","72 h","Endpoint stated as mortality. Mortality defined as not closing in response to brine exposure or in being and remaining closed before and after brine exposure.","NEC provided in table, LC50","Not quantified as % effect","control was the reconstituted water used in testing but without added toxicants. This isn't explicitly stated but implied","triplicate","Greater than 90% viability required for inclusion in testing. Test acceptability criteria were stated as mean control survival >90% and control coefficient of variaiton <7% at the end of the test.","age <2 hours old","Test water was reconstituted water made from deionized water (MIlliQ), chemistry of the water is summarized in a table","static","start and end","","concentration response curves were fitted using non-linear regression models. Nothing stated as to the relationship itself, used to determine LC50 values. An example is shown in Supplementary material. ","no effect concentration (NEC) for each metal was calculated using a Bayesian approach (OpenBugs version 3.2.3; Fox, 2010)","",7,42,22,"DOC<0.1 mg/L   stated in Table1 legend",">85% saturation","","AR Grade chemicals, control water measured"]
["Category","Freshwater/metal/non- plant","Paper and data unique identifier(eg. 1-1,10-150)","ANZG234-4"]
["Scores",10,10,5,0,5,5,5,5,5,4,4,0,0,4,0,3,3,3,3,3,3,3,83,0.83,""]
["Answers","72 h","Endpoint stated as mortality. Mortality defined as not closing in response to brine exposure or in being and remaining closed before and after brine exposure.","NEC provided in table, LC50","Not quantified as % effect","control was the reconstituted water used in testing but without added toxicants. This isn't explicitly stated but implied","triplicate","Greater than 90% viability required for inclusion in testing. Test acceptability criteria were stated as mean control survival >90% and control coefficient of variaiton <7% at the end of the test.","age <2 hours old","Test water was reconstituted water made from deionized water (MIlliQ), chemistry of the water is summarized in a table","static","start and end","","concentration response curves were fitted using non-linear regression models. Nothing stated as to the relationship itself, used to determine LC50 values. An example is shown in Supplementary material. ","no effect concentration (NEC) for each metal was calculated using a Bayesian approach (OpenBugs version 3.2.3; Fox, 2010)","",7,42,22,"DOC<0.1 mg/L   stated in Table1 legend",">85% saturation","","AR Grade chemicals, control water measured"]
["Category","Freshwater/metal/non- plant","Paper and data unique identifier(eg. 1-1,10-150)","ANZG234-5"]
["Scores",10,10,5,0,5,5,5,5,5,4,4,0,0,4,0,3,3,3,3,3,3,3,83,0.83,""]
["Answers","72 h","Endpoint stated as mortality. Mortality defined as not closing in response to brine exposure or in being and remaining closed before and after brine exposure.","NEC provided in table, LC50","Not quantified as % effect","control was the reconstituted water used in testing but without added toxicants. This isn't explicitly stated but implied","triplicate","Greater than 90% viability required for inclusion in testing. Test acceptability criteria were stated as mean control survival >90% and control coefficient of variaiton <7% at the end of the test.","age <2 hours old","Test water was reconstituted water made from deionized water (MIlliQ), chemistry of the water is summarized in a table","static","start and end","","concentration response curves were fitted using non-linear regression models. Nothing stated as to the relationship itself, used to determine LC50 values. An example is shown in Supplementary material. ","no effect concentration (NEC) for each metal was calculated using a Bayesian approach (OpenBugs version 3.2.3; Fox, 2010)","",7,42,22,"DOC<0.1 mg/L   stated in Table1 legend",">85% saturation","","AR Grade chemicals, control water measured"]
["Category","Freshwater/metal/non- plant","Paper and data unique identifier(eg. 1-1,10-150)","ANZG234-6"]
["Scores",10,10,5,0,5,5,5,5,5,4,4,0,0,4,0,3,3,3,3,3,3,3,83,0.83,""]
["Answers","72 h","Endpoint stated as mortality. Mortality defined as not closing in response to brine exposure or in being and remaining closed before and after brine exposure.","NEC provided in table, LC50","Not quantified as % effect","control was the reconstituted water used in testing but without added toxicants. This isn't explicitly stated but implied","triplicate","Greater than 90% viability required for inclusion in testing. Test acceptability criteria were stated as mean control survival >90% and control coefficient of variaiton <7% at the end of the test.","age <2 hours old","Test water was reconstituted water made from deionized water (MIlliQ), chemistry of the water is summarized in a table","static","start and end","","concentration response curves were fitted using non-linear regression models. Nothing stated as to the relationship itself, used to determine LC50 values. An example is shown in Supplementary material. ","no effect concentration (NEC) for each metal was calculated using a Bayesian approach (OpenBugs version 3.2.3; Fox, 2010)","",7,42,22,"DOC<0.1 mg/L   stated in Table1 legend",">85% saturation","","AR Grade chemicals, control water measured"]
["Category","Freshwater/metal/non- plant","Paper and data unique identifier(eg. 1-1,10-150)","169411-1"]
["Scores",10,5,0,5,5,5,0,5,5,4,4,0,4,4,4,3,3,0,0,3,3,3,75,0.75,""]
["Answers","42 day","stated survival","","shown in table","control with no toxicant","3 reps of 20 fish each","","mean weight 12.5g","dechlorinated tap water","static 100% daily renewal","measured twice weekly","","observed in data table. ","ANOVA, Tukey SPSS 10"," p<0.05",7.6,61.8,"","",6.8,"","2ppb Cu in control"]
["Category","Freshwater/metal/non- plant","Paper and data unique identifier(eg. 1-1,10-150)","169411-2"]
["Scores",10,5,0,0,5,5,0,5,5,4,4,0,4,4,4,3,3,0,0,3,3,3,70,0.7,""]
["Answers","42 day","SGR specific growth rate","","shown in table","control with no toxicant","3 reps of 20 fish each","","mean weight 12.5g","dechlorinated tap water","static 100% daily renewal","measured twice weekly","","observed in data table. ","ANOVA, Tukey SPSS 10"," p<0.05",7.6,61.8,"","",6.8,"","2ppb Cu in control"]
["Category","Freshwater/metal/non- plant","Paper and data unique identifier(eg. 1-1,10-150)","169411-3"]
["Scores",10,5,0,0,5,5,0,5,5,4,4,0,4,4,4,3,3,0,0,3,3,3,70,0.7,""]
["Answers","42 day","SGR specific growth rate","","shown in table","control with no toxicant","3 reps of 20 fish each","","mean weight 12.5g","dechlorinated tap water","static 100% daily renewal","measured twice weekly","","observed in data table. ","ANOVA, Tukey SPSS 10"," p<0.05",7.6,61.8,"","",6.8,"","2ppb Cu in control"]
["Category","Freshwater/metal/non- plant","Paper and data unique identifier(eg. 1-1,10-150)","169411-4"]
["Scores",10,5,0,0,5,5,0,5,5,4,4,0,4,4,4,3,3,0,0,3,3,3,70,0.7,""]
["Answers","42 day","CF Condition Factor","","shown in table","control with no toxicant","3 reps of 20 fish each","","mean weight 12.5g","dechlorinated tap water","static 100% daily renewal","measured twice weekly","","observed in data table. ","ANOVA, Tukey SPSS 10"," p<0.05",7.6,61.8,"","",6.8,"","2ppb Cu in control"]
["Category","Freshwater/metal/non- plant","Paper and data unique identifier(eg. 1-1,10-150)","169411-5"]
["Scores",10,5,0,0,5,5,0,5,5,4,4,0,4,4,4,3,3,0,0,3,3,3,70,0.7,""]
["Answers","42 day","CF Condition Factor","","shown in table","control with no toxicant","3 reps of 20 fish each","","mean weight 12.5g","dechlorinated tap water","static 100% daily renewal","measured twice weekly","","observed in data table. ","ANOVA, Tukey SPSS 10"," p<0.05",7.6,61.8,"","",6.8,"","2ppb Cu in control"]
["Category","Freshwater/metal/non- plant","Paper and data unique identifier(eg. 1-1,10-150)","ANZG3333-1"]
["Scores",10,10,5,5,5,5,0,5,5,4,2,0,4,4,4,1,1,1,0,0,1,3,75,0.75,""]
["Answers","96 h","hyphal growth ","IC",10,"control with no toxicant","4 replicates","","age","dechlorinated water","static","beginning","","stated","fitting 2-parameter nonlinear regression curves using the DRC package Ver 2.3-\n96] in RFor all data, log-normal, log-logistic.\nWeibull functions were fitted with the optimal model fit chosen for each dataset by the distribution that had the lowest Akaikes\nInformation Criterion value.","95% CI","","","","","","","Stated not shown"]
["Category","Freshwater/metal/non- plant","Paper and data unique identifier(eg. 1-1,10-150)","ANZG3333-2"]
["Scores",10,10,5,5,5,5,0,5,5,4,2,0,4,4,4,1,1,1,0,0,1,3,75,0.75,""]
["Answers","21 day","hyphal growth ","IC",10,"control with no toxicant","4 replicates","","age","dechlorinated water","static","beginning","","stated","fitting 2-parameter nonlinear regression curves using the DRC package Ver 2.3-\n96] in RFor all data, log-normal, log-logistic.\nWeibull functions were fitted with the optimal model fit chosen for each dataset by the distribution that had the lowest Akaikes\nInformation Criterion value.","95% CI","","","","","","","Stated not shown"]
["Category","Freshwater/metal/non- plant","Paper and data unique identifier(eg. 1-1,10-150)","165445-1"]
["Scores",10,5,5,5,5,5,5,0,5,4,4,0,4,4,4,3,3,1,3,3,3,0,81,0.81,""]
["Answers","2-d","survival","EC",20,"control with no toxicant","3 reps of a control and 5 concentrations ","at least 90 % viable glochidia. ","","","static","3 time points","","observable","USEPA 2002","p<0.05",7.8,30,"","2.0-2.9",9,"","not stated "]
["Category","Freshwater/metal/non- plant","Paper and data unique identifier(eg. 1-1,10-150)","165445-2"]
["Scores",10,5,5,5,5,5,5,0,5,4,4,0,4,4,4,3,3,1,3,3,3,0,81,0.81,""]
["Answers","2-d","survival","EC",20,"control with no toxicant","3 reps of a control and 5 concentrations ","at least 90 % viable glochidia. ","","","static","3 time points","","observable","USEPA 2002","p<0.05",7.8,30,"","2.0-2.9",9,"","not stated "]
["Category","Freshwater/metal/non- plant","Paper and data unique identifier(eg. 1-1,10-150)","165445-3"]
["Scores",10,5,5,5,5,5,5,0,5,4,4,0,4,4,4,3,3,1,3,3,3,0,81,0.81,""]
["Answers","2-d","survival","EC",20,"control with no toxicant","3 reps of a control and 5 concentrations ","at least 90 % viable glochidia. ","","","static","3 time points","","observable","USEPA 2002","p<0.05",7.8,30,"","2.0-2.9",9,"","not stated "]
["Category","Freshwater/metal/non- plant","Paper and data unique identifier(eg. 1-1,10-150)","ANZG3334-1"]
["Scores",10,10,5,5,5,5,5,5,5,4,4,0,0,0,4,3,0,3,0,3,3,3,82,0.82,""]
["Answers","4-d","number of eggs produced at the end of the test","EC",10,"control with no toxicant","three replicates of 6 pairs of snails","80% or more of the control snails are alive, the %CV for the control is ≤20%, and eggs numbers of the control are between 100 and 250 eggs per pair","10-13mm","","static renewal daily","start and end","conducted quarterly not at same time","not stated","general description for all tests. ECxs are derived for each organism and test water using non-linear logistic regression","95% CI",6.7,2.1,1.5,2.1,107,"shown in table","AR grade"]
["Category","Freshwater/metal/non- plant","Paper and data unique identifier(eg. 1-1,10-150)","ANZG3334-2"]
["Scores",10,10,5,5,5,5,5,5,5,4,4,0,0,4,4,3,3,3,3,3,1,3,90,0.9,""]
["Answers","72 h","cell division","EC",10,"control with no toxicant","triplicate","growth rate of the control algae must be within the range 2.0 ± 0.3 (mean ± SD) doublings/d to be considered acceptable","3x10^3 cells/mL starting density","","static","","","","ref USEPA and OECD","95% CI",6.3,1.9,1.5,2.1,109,"chamber temperature","both"]
["Category","Freshwater/metal/non- plant","Paper and data unique identifier(eg. 1-1,10-150)","ANZG3334-4"]
["Scores",10,5,5,5,5,5,5,5,0,4,4,0,0,4,4,3,3,3,3,3,1,3,80,0.8,""]
["Answers","4-d","population growth","EC",10,"control with no toxicant","triplicate","More than 30 healthy hydroids must be present in each control dish (equivalent to a growth rate of 0.27) at the end of the test period for the test to be considered valid","a hydroid must have only one developing bud","in table of chemistry","static","","","","CETIS v. 1.9.0.9, non-linear 3-parameter log-logistic regression","95% CI",6.6,2.7,1.5,2.1,113,"uncertain",""]
["Category","Freshwater/metal/non- plant","Paper and data unique identifier(eg. 1-1,10-150)","ANZG3334-5"]
["Scores",10,10,5,5,5,5,5,5,5,4,4,0,0,4,4,3,3,3,3,3,1,3,90,0.9,""]
["Answers","6-d","number of neonates produced and neonate survival","EC",10,"control with no toxicant","10 reps"," ≥80% of the control cladocerans must be alive, and must have produced three broods, averaging ≥30 neonates at the end of the test period.","neonate <6h old","Magela creek water filtered","static","","","","CETIS v. 1.9.0.9, non-linear 3-parameter log-logistic regression","95% CI",6.6,2.8,2,2,109,"room temperature",""]
["Category","Freshwater/metal/non- plant","Paper and data unique identifier(eg. 1-1,10-150)","ANZG3334-6"]
["Scores",10,10,5,5,5,5,5,5,5,4,4,0,0,4,4,3,3,3,3,3,1,3,90,0.9,""]
["Answers","7-d","Growth measured change in length of fish before and at end of test","EC",10,"control with no toxicant","3 reps of 10 fish","The entire dataset is considered acceptable if ≥80% of the control fry are alive at the completion of the test, with a minimum control growth rate of 0.085\nmm/d","age, length","Magela creek water ","static","","","","CETIS v. 1.9.0.9, non-linear 3-parameter log-logistic regression","95% CI",6.7,3.1,2.5,1.4,107,"test room temperature",""]
["Category","Freshwater/metal/non- plant","Paper and data unique identifier(eg. 1-1,10-150)","ANZG3335-1"]
["Scores",10,10,5,5,5,5,5,5,5,4,4,0,4,4,4,1,0,0,3,0,1,0,80,0.8,""]
["Answers","3-d","Algal cell density was determined\ndaily (24, 48 and 72 h) using a flow cytometer gated ..","EC10 growth rate",10,"not clearly stated what the controls are, but reference methods to OECD 201","two replicates and repeated 2-4 times","Variability in the controls <20%.\nControl algal 72‐h growth rates >1 doubling/day","Exponentially growing microalgal cells, initial\ncell density of 2–4×10^3 cells/mL","synthetic soft water","static","","","","","95% CI","measured but not stated","","","<0.5 mg/L","","room temperature settings stated","not stated"]
["Category","Freshwater/metal/non- plant","Paper and data unique identifier(eg. 1-1,10-150)","ANZG3335-2"]
["Scores",10,10,5,5,5,5,5,5,5,4,4,0,4,4,4,1,0,0,3,0,1,0,80,0.8,""]
["Answers","3-d","Algal cell density was determined\ndaily (24, 48 and 72 h) using a flow cytometer gated ..","EC10 growth rate",10,"not clearly stated what the controls are, but reference methods to OECD 201","two replicates and repeated 2 times","Variability in the controls <20%.\nControl algal 72‐h growth rates >1 doubling/day","Exponentially growing microalgal cells, initial\ncell density of 2–4×10^3 cells/mL","synthetic soft water","static","","","","","95% CI","measured but not stated","","","<0.5 mg/L","","room temperature settings stated","not stated"]

{"sheet":"FW metal plant","index":7,"n_rows":87,"n_cols":53,"rows_kept":87,"cut":false,"hidden":false,"merged":[[3,4,7,4],[9,2,9,4],[11,2,13,2],[11,7,13,7],[14,2,16,2],[14,7,16,7],[17,2,19,2],[17,7,19,7],[20,2,21,2],[20,7,21,7],[22,2,24,2],[22,7,24,7],[25,2,27,2],[25,7,27,7],[28,2,30,2],[28,7,30,7],[31,2,33,2],[31,7,33,7],[34,2,36,2],[34,7,36,7],[37,2,39,2],[37,7,39,7],[40,2,42,2],[40,7,42,7],[43,2,45,2],[43,7,45,7],[46,2,48,2],[46,7,48,7],[49,2,51,2],[49,7,51,7],[71,2,74,2],[71,7,74,7],[52,2,54,2],[52,7,54,7],[68,2,70,2],[68,7,70,7],[65,7,67,7],[56,7,58,7],[59,7,61,7],[62,7,64,7]]}
[null,1,"Fill in the blank cells below, based on information provided in the paper being assessed. You can either pick an option from the dropdown list or add the appropriate detail using the 'Add to list' button. ",null,null,null,null,null,null,null,null,null,null,null,"* All the text in RED are used for drop down list ,make changes with caution."]
[null,null,"Category",{"$f":"IF(AF3=\"\",0,1)","v":1},"Freshwater/metal/plant",{"$f":"IF(E3=\"\",0,1)","v":1},"Citation No.",{"$f":"IF(ISERROR(FIND(\"-\",E3)),E3,LEFT(E3,FIND(\"-\",E3)-1))","v":"ANZG3334"},null,"Taxonomic group",null,null,null,null,"Species",null,null,"Lifestage",null,null,"Exposure duration",null,null,"Measure of toxicity",null,null,"Toxicity endpoint",null,null,"Taxonomic group",null,null,"Phylum",null,null,"Class",null,null,"Media",null,null,"Temperature ",null,null,"Acute Or Chronic",null,null,"PH",null,null,"Salinity/Comdictivity"]
[null,null,"Paper and data unique identifier(eg. 1-1,10-150)",{"$f":"IF(AI3=\"\",0,1)","v":1},"ANZG3334-3",{"$f":"IF(E4=\"\",0,1)","v":1},"Species (Scientific name)",null,null,"Phylum",null,null,null,null,"Aedes albopictus",5,{"$f":"IF(P3=0,\"\",INDEX(O3:O108,P3))","v":"Lemna aequinoctialis"},"1 month",5,{"$f":"IF(S3=0,\"\",INDEX(R3:R108,S3))","v":"3 frond stage"},"11 hour",5,{"$f":"IF(V3=0,\"\",INDEX(U3:U108,V3))","v":"4-d"},"LC50",4,{"$f":"IF(Y3=0,\"\",INDEX(X3:X108,Y3))","v":"EC10"},"Mortality",4,{"$f":"IF(AB3=0,\"\",INDEX(AA3:AA108,AB3))","v":"Growth"},"Fish ",4,{"$f":"IF(AE3=0,\"\",INDEX(AD3:AD108,AE3))","v":"Macrophyte"},"Chlorophyta",5,{"$f":"IF(AH3=0,\"\",INDEX(AG3:AG108,AH3))","v":"Spermatophyta"},"Branchiopoda",5,{"$f":"IF(AK3=0,\"\",INDEX(AJ3:AJ108,AK3))","v":"Monocotyledonae"},"Freshwater",5,{"$f":"IF(AN3=0,\"\",INDEX(AM3:AM108,AN3))","v":"Natural water"},"15°C",5,{"$f":"IF(AQ3=0,\"\",INDEX(AP3:AP108,AQ3))","v":29},"Acute ",1,{"$f":"IF(AT3=0,\"\",INDEX(AS3:AS108,AT3))","v":"Acute "},"N.A.",5,{"$f":"IF(AW3=0,\"\",INDEX(AV3:AV108,AW3))","v":6.8},"Salinity1",null,"N.A."]
[null,null,"Citation",{"$f":"IF(AL3=\"\",0,1)","v":1},"Melanie A Trenfield*, Ceiwen J Pease, Samantha L Walker, Tom Mooney, Linda Tybell, Chris Humphrey, Rick A van Dam and Andrew J Harford (2020). Standardised chronic toxicity test protocols\nand culturing methods for a suite of\ntropical freshwater spec ies. Australasian Bulletin of Ecotoxicology and Environmental Chemistry Vol6. 82p",{"$f":"IF(H8=\"\",0,1)","v":1},"Lifestage",null,null,"Class",null,null,null,null,"Australian Bass",null,null,"1 year old",null,null,"13 days",null,null,"N.A.",null,null,"N.A.",null,null,"Microalga",null,null,"N.A.",null,null,"Chlorophyceae",null,null,"Marinewater",null,null,"25°C",null,null,"Chronic",null,null,"PH11",null,null,"Salinity2"]
[null,null,null,{"$f":"IF(AO3=\"\",0,1)","v":1},null,{"$f":"IF(AX3=\"\",0,1)","v":1},"Exposure duration",null,null,"Media",null,null,null,null,"N.A.",null,null,"N.A.",null,null,"N.A.",null,null,"NOEC",null,null,"Reproduction",null,null,"N.A.",null,null,"Tracheophyta",null,null,"N.A.",null,null,"N.A.",null,null,"N.A.",null,null,"N.A.",null,null,"PH7.0 "]
[null,null,null,{"$f":"IF(AR3=\"\",0,1)","v":1},null,{"$f":"IF(Q3=\"\",0,1)","v":1},"Measure of toxicity",null,null,"Temperature ",null,null,null,null,"Zizania palustris",null,null,"Seedling",null,null,"14-d",null,null,"EC10",null,null,"Growth",null,null,"Macrophyte",null,null,"Angiosperm",null,null,"Monocot",null,null,"Synthetic water",null,null,16,null,null,null,null,null,7.1]
[null,null,null,{"$f":"IF(AU3=\"\",0,1)","v":1},null,{"$f":"IF(T3=\"\",0,1)","v":1},"Toxicity endpoint",null,null,"Acute Or Chronic ",null,null,null,null,"Lemna aequinoctialis",null,null,"3 frond stage",null,null,"4-d",null,null,null,null,null,null,null,null,null,null,null,"Spermatophyta",null,null,"Monocotyledonae",null,null,"Natural water",null,null,29,null,null,null,null,null,6.8]
[null,null,null,null,null,{"$f":"IF(W3=\"\",0,1)","v":1},"Toxicity value",6.8,null,"PH",null,null,null,null,null,null,null,null,null,null,null,null,null,null,null,null,null,null,null,null,null,null,null,null,null,null,null,null,"Synthetic water",null,null,null,null,null,null,null,null,7.3]
[null,2,"Select the appropriate answer option to each question. Comments can be added to the cells in column H.",null,null,{"$f":"IF(Z3=\"\",0,1)","v":1},null,null,null,"Salinity/Conductivity","N.A."]
[null,"*","If the selected answer option does not work try clicking on any other cell first and then click back on the answer option again.",null,null,{"$f":"IF(AC3=\"\",0,1)","v":1}]
[null,"No.","Question","Marks Awarded","Answer Options","Option References","Scores","Answers"]
[null,null,"Was the duration of the exposure stated (e.g. 48 or 96 h)?",10,null,1,{"$f":"IF(F15=0,0,INDEX($D12:$D13,F12,1))","v":10},"4-d"]
[null,1,null,0]
[]
[null,null,"Was the biological endpoint (e.g., immobilization or population growth) stated and defined (10 marks)? Award 5 marks if the biological endpoint is only stated.",10,null,1,{"$f":"IF(F15=0,0,INDEX($D15:$D17,F15,1))","v":10},"Growth rate"]
[null,2,null,5]
[null,null,null,0]
[null,null,"Was the biological effect stated (e.g. LC or NOEC)?",5,null,1,{"$f":"IF(F18=0,0,INDEX($D18:$D19,F18,1))","v":5},"EC"]
[null,3,null,0]
[]
[null,4,"Was the biological effect quantified (e.g. 50% effect, 25% effect)? \nNote: The effect for NOEC and LOEC data must be quantified.",5,null,1,{"$f":"IF(F21=0,0,INDEX($D21:$D22,F21,1))","v":5},"Percentage of control"]
[null,null,null,0]
[null,5,"Were appropriate controls (e.g. a no-toxicant control and/or solvent control) used?",5,null,1,{"$f":"IF(F23=0,0,INDEX($D23:$D24,F23,1))","v":5},"control with no toxicant"]
[null,null,null,0]
[]
[null,6,"Was each control and contaminant concentration at least duplicated?",5,null,1,{"$f":"IF(F26=0,0,INDEX($D26:$D27,F26,1))","v":5},"triplicate"]
[null,null,null,0]
[]
[null,7,"Were test acceptability criteria stated (e.g. mortality in controls must not exceed a certain percentage) (5 marks)?\nOR Were test acceptability criteria inferred (e.g. test method used [USEPA, OECD, ASTM etc.]) (award 2 marks). \nNote: Data that fail the acceptability criteria are automatically deemed to be of unacceptable quality and must not be used. ",5,null,1,{"$f":"IF(F29=0,0,INDEX($D29:$D31,F29,1))","v":5},"growth rate of the control treatment must be within the range 0.35 ± 0.1 cm2/d for the SA\nendpoint and 0.4 ± 0.1 fronds/d for the frond count endpoint (a total of 60 fronds over 96 h) for the test to be\nconsidered valid"]
[null,null,null,2]
[null,null,null,0]
[null,8,"Were the characteristics of the test organism (e.g. length, mass, age) stated?",5,null,1,{"$f":"IF(F32=0,0,INDEX($D32:$D34,F32,1))","v":5},"3 frond stage"]
[null,null,null,0]
[]
[null,9,"Was the type of test media used stated?",5,null,1,{"$f":"IF(F35=0,0,INDEX($D35:$D37,F35,1))","v":5}]
[null,null,null,0]
[]
[null,null,"Was the type of exposure (e.g. static, flow through) stated? ",4,null,1,{"$f":"IF(F38=0,0,INDEX($D38:$D40,F38,1))","v":4},"Static "]
[null,10,null,0]
[]
[null,null,"Were the contaminant concentrations measured at the beginning and end of the exposure (4 marks)? Award 2 marks if they were measured only once during the test.\nNote: If the concentrations were not measured then automatically the data cannot be high quality. ",4,null,1,{"$f":"IF(F41=0,0,INDEX($D41:$D43,F41,1))","v":4},"start and end"]
[null,11,null,2]
[null,null,null,0]
[null,null,"Were parallel reference toxicant toxicity tests conducted?",4,null,2,{"$f":"IF(F44=0,0,INDEX($D44:$D46,F44,1))","v":0},"No"]
[null,12,null,0]
[]
[null,null,"Was there a concentration–response relationship either observable or stated?",4,null,2,{"$f":"IF(F47=0,0,INDEX($D47:$D49,F47,1))","v":0}]
[null,13,null,0]
[]
[null,null,"Was an appropriate statistical method or model used to determine the toxicity?\nNote: They should be accepted by a recognised national or international regulatory body (e.g. USEPA, OECD, ASTM). ",4,null,1,{"$f":"IF(F50=0,0,INDEX($D50:$D52,F50,1))","v":4},"CETIS v. 1.9.0.9"]
[null,14,null,0]
[]
[null,15,"For LC/EC/BEC data was an estimate of variability provided? \nOR \nFor NO EC/LOEC data was the significance level 0.05 or less?  \n\n",4,null,1,{"$f":"IF(F53=0,0,INDEX($D53:$D55,F53,1))","v":4},"CI 95%"]
[null,null,null,0]
[]
[null,16,"Were the following parameters measured and stated? (3 marks if measured and stated, 1 mark if just measured)."]
[null,null,null,3,null,1,{"$f":"IF(F57=0,0,INDEX($D57:$D59,F57,1))","v":3},6.8]
[null,16.100000000000001,"pH ",1]
[null,null,null,0]
[null,null,null,3,null,1,{"$f":"IF(F60=0,0,INDEX($D60:$D62,F60,1))","v":3},3.1]
[null,16.2,"Hardness",1]
[null,null,null,0]
[null,null,null,3,null,1,{"$f":"IF(F63=0,0,INDEX($D63:$D65,F63,1))","v":3},2]
[null,16.3,"Alkalinity ",1]
[null,null,null,0]
[null,null,null,3,null,1,{"$f":"IF(F66=0,0,INDEX($D66:$D68,F66,1))","v":3},2]
[null,16.399999999999999,"Organic carbon concentration",1]
[null,null,null,0]
[null,null,"Was the temperature measured and stated (3 marks)? Award 1 mark if the temperature was measured but not stated or if only the temperature settings of the room or chamber are stated.",3,null,2,{"$f":"IF(F69=0,0,INDEX($D69:$D71,F69,1))","v":1},"incubator temp"]
[null,17,null,1]
[null,null,null,0]
[null,null,"Were test solutions, blanks and/or controls tested for contamination OR were analytical reagent grade chemicals used or the highest possible purity chemicals used for the experiment? (3 marks).",3,null,1,{"$f":"IF(F72=0,0,INDEX($D72:$D73,F72,1))","v":3}]
[null,18,null,0]
[]
[null,null,null,null,null,null,null,null,{"$f":"(COUNTIF(F12:F73,\"=0\"))+COUNTIF(F2:F10,\"=0\")+COUNTIF(D2:D7,\"=0\")","v":0}]
[]
[]
[null,null,"Total score",null,null,null,{"$f":"IF(SUM(G12:G72)=0,\"\",SUM(G12:G72))","v":87}]
[null,null,"Total Max. possible score for the various types of data and contaminants ",null,{"$f":"D12+D15+D18+D21+D23+D26+D29+D32+D35+D38+D41+D44+D47+D50+D53+D57+D66+D69+D72+D60+D63","v":97}]
[null,null,"Quality Score",null,{"$f":"\"= [Total score / Total possible score] * 100 = \"","v":"= [Total score / Total possible score] * 100 = "},null,{"$f":"IF(ISERROR(G78/E79),#N/A,G78/E79)","v":0.89690721649484539},{"$f":"IF(F41=3,\"The highest possible grade for this datum is acceptable.\",\"\")","v":""}]
[]
[null,null,"H = high quality                           Quality score ≥ 80%      "]
[null,null,"A = acceptable quality         > 50% Quality score < 80%      "]
[null,null,"U = unacceptable quality              Quality score ≤ 50%  "]
[]
[3,null,"Click the 'Save & Update' button to save and export the answers to the 'All results' worksheet. "]
[null,null,"Select the 'Reset Answers' button if you wish to clear all answers."]

{"sheet":"FW metal plant_WS","index":8,"n_rows":17,"n_cols":25,"rows_kept":17,"cut":false,"hidden":false,"merged":[]}
[]
["Question No.",1,2,3,4,5,6,7,8,9,10,11,12,13,14,15,16.100000000000001,16.2,16.3,16.399999999999999,17,18,"Total Score","Quality Score"]
["Short Questions","Duration of the exposure ","Biological endpoint","Biological effect stated or not","Biological effect quantified or not","Appropriate controls","Control & contaminant concentration","Test acceptability criteria","Characteristics of the test organism"," Type of test media","Type of exposure","Contaminant concentrations","Parallel reference toxicant toxicity tests","Concentration–response relationship","Determine the toxicity","NOEC/LOEC or LC/EC/BEC","pH","Hardness","Alkalinity ","Organic carbon concentration","Temperature","Grade or purity"]
["Marks Awarded ","10 or 0","10,5 or 0","5 or 0 ","5 or 0 ","5 or 0 ","5 or 0 ","5 or 0 ","5 or 0 ","5 or 0 ","4 or 0","4 or 2 or 0","4 or 2","4 or 2","4 or 2","4 or 2","3 or 1 or 0","3 or 1 or 0","3 or 1 or 0","3 or 1 or 0","3 or 0","3 or 0 "]
["Max. Possible Score",10,10,5,5,5,5,5,5,5,4,4,4,4,4,4,3,3,3,3,3,3,{"$f":"SUM(B5:V5)","v":97}]
["Category","Freshwater/metal/plant","Paper and data unique identifier(eg. 1-1,10-150)","86269-1"]
["Scores",10,10,5,5,5,5,0,5,5,0,2,0,4,4,4,3,3,3,3,1,3,80,0.82474226804123707,""]
["Answers","14-d","Growth, average seedling net weight gain","NOEC","Percentage of control shown","","8 reps (of individual seedlings)","","Seeds","Swamp Creek water","Static as in dishes","Composite from start, mid and end measured","No","Observable","ToxStat used"," p < 0.05","","","","","incubator temp 12 C.","Cu measured in controls"]
["Category","Freshwater/metal/plant","Paper and data unique identifier(eg. 1-1,10-150)","86269-2"]
["Scores",10,10,5,5,5,5,0,5,5,0,2,0,4,4,4,3,3,3,3,1,3,80,0.82474226804123707,""]
["Answers","14-d","Growth, average seedling net weight gain","NOEC","Percentage of control shown","","8 reps (of individual seedlings)","","Seeds","Swamp Creek water","Static as in dishes","Composite from start, mid and end measured","No","Observable","ToxStat used"," p < 0.05","","","","","incubator temp 12 C.","Cu measured in controls"]
["Category","Freshwater/metal/plant","Paper and data unique identifier(eg. 1-1,10-150)","86269-3"]
["Scores",10,10,5,5,5,5,0,5,5,0,2,0,4,4,4,3,3,3,3,1,3,80,0.82474226804123707,""]
["Answers","14-d","Growth, average seedling net weight gain","NOEC","Percentage of control shown","","12 reps (of individual seedlings)","","Seeds","Reconstituted water, USEPA 1985","Static as in dishes","Composite from start, mid and end measured","No","Observable","ToxStat used"," p < 0.05","","","","","incubator temp 12 C.","Cu measured in controls"]
["Category","Freshwater/metal/plant","Paper and data unique identifier(eg. 1-1,10-150)","ANZG3334-3"]
["Scores",10,10,5,5,5,5,5,5,5,4,4,0,0,4,4,3,3,3,3,1,3,87,0.89690721649484539,""]
["Answers","4-d","Growth rate","EC","Percentage of control","control with no toxicant","triplicate","growth rate of the control treatment must be within the range 0.35 ± 0.1 cm2/d for the SA\nendpoint and 0.4 ± 0.1 fronds/d for the frond count endpoint (a total of 60 fronds over 96 h) for the test to be\nconsidered valid","3 frond stage","","Static ","start and end","No","","CETIS v. 1.9.0.9","CI 95%",6.8,3.1,2,2,"incubator temp",""]